Body Name,Body,Date,Department,Beneficiary,Summary of Purpose (SeRCOP),Amount,Merchant Code,Transaction Number
Sandwell Metropolitan Borough Council,http://www.sandwell.gov.uk/info/200202/performance_and_spending/3233/government_procurement_cards,04-Apr-2018,Housing & Communities,Amazon EU,Neighbourhoods,242.21,Materials & Consumables,1819Q01_PC00001
Sandwell Metropolitan Borough Council,http://www.sandwell.gov.uk/info/200202/performance_and_spending/3233/government_procurement_cards,04-Apr-2018,Housing & Communities,AMZ Gameseek,Neighbourhoods,-337.87,Materials & Consumables,1819Q01_PC00002
Sandwell Metropolitan Borough Council,http://www.sandwell.gov.uk/info/200202/performance_and_spending/3233/government_procurement_cards,04-Apr-2018,Regeneration & Growth,BSI STANDARDS,Regeneration And The Economy,2193,Subscriptions,1819Q01_PC00003
Sandwell Metropolitan Borough Council,http://www.sandwell.gov.uk/info/200202/performance_and_spending/3233/government_procurement_cards,04-Apr-2018,Housing & Communities,HIGHFIELD HOUSE HO,Neighbourhoods,175,Operational Services,1819Q01_PC00004
Sandwell Metropolitan Borough Council,http://www.sandwell.gov.uk/info/200202/performance_and_spending/3233/government_procurement_cards,04-Apr-2018,Resources (Inc SIU),GOOGLE  CLOUD_01B69F-A,Assistant Chief Executive (Excl SIU),51.5,ICT,1819Q01_PC00005
Sandwell Metropolitan Borough Council,http://www.sandwell.gov.uk/info/200202/performance_and_spending/3233/government_procurement_cards,04-Apr-2018,Individual School Budgets With Inclusion,Trainline,Individual School Budgets With Inclusion,46.95,Public Transport,1819Q01_PC00006
Sandwell Metropolitan Borough Council,http://www.sandwell.gov.uk/info/200202/performance_and_spending/3233/government_procurement_cards,05-Apr-2018,Housing & Communities,FINANCIAL TIMES LTD,Neighbourhoods,520,Materials & Consumables,1819Q01_PC00007
Sandwell Metropolitan Borough Council,http://www.sandwell.gov.uk/info/200202/performance_and_spending/3233/government_procurement_cards,05-Apr-2018,Housing & Communities,FINANCIAL TIMES LTD,Neighbourhoods,624,Materials & Consumables,1819Q01_PC00008
Sandwell Metropolitan Borough Council,http://www.sandwell.gov.uk/info/200202/performance_and_spending/3233/government_procurement_cards,05-Apr-2018,Childrens Services,ASDA STORES LTD 5865,Childrens Services,4.53,Catering Provisions,1819Q01_PC00009
Sandwell Metropolitan Borough Council,http://www.sandwell.gov.uk/info/200202/performance_and_spending/3233/government_procurement_cards,05-Apr-2018,Adult Social Care Health and Wellbeing - Total,WESTMINSTER FORUM,Total Adult Social Care,230,Conference Expenses,1819Q01_PC00010
Sandwell Metropolitan Borough Council,http://www.sandwell.gov.uk/info/200202/performance_and_spending/3233/government_procurement_cards,05-Apr-2018,Resources (Inc SIU),SAINSBURYS 0558,Assistant Chief Executive (Excl SIU),10.15,Catering Provisions,1819Q01_PC00011
Sandwell Metropolitan Borough Council,http://www.sandwell.gov.uk/info/200202/performance_and_spending/3233/government_procurement_cards,05-Apr-2018,Childrens Services,ASDA STORES LTD 5865,Childrens Services,12.84,Catering Provisions,1819Q01_PC00012
Sandwell Metropolitan Borough Council,http://www.sandwell.gov.uk/info/200202/performance_and_spending/3233/government_procurement_cards,06-Apr-2018,Total Housing Revenue Account,INTUMESCENT SYSTEMS,Total Housing Revenue Account,68.4,Materials & Consumables,1819Q01_PC00013
Sandwell Metropolitan Borough Council,http://www.sandwell.gov.uk/info/200202/performance_and_spending/3233/government_procurement_cards,06-Apr-2018,Housing & Communities,BIG CITY BANNERS &AMP;,Neighbourhoods,207,Ind. Emp Exp-Advertising,1819Q01_PC00014
Sandwell Metropolitan Borough Council,http://www.sandwell.gov.uk/info/200202/performance_and_spending/3233/government_procurement_cards,06-Apr-2018,Housing & Communities,BIG CITY BANNERS &AMP;,Neighbourhoods,138,Ind. Emp Exp-Advertising,1819Q01_PC00015
Sandwell Metropolitan Borough Council,http://www.sandwell.gov.uk/info/200202/performance_and_spending/3233/government_procurement_cards,06-Apr-2018,Childrens Services,ARCO LTD,Childrens Services,-24.99,Protective Clothing&Uniforms,1819Q01_PC00016
Sandwell Metropolitan Borough Council,http://www.sandwell.gov.uk/info/200202/performance_and_spending/3233/government_procurement_cards,06-Apr-2018,Total Housing Revenue Account,NUFFIELD HEALTH,Total Housing Revenue Account,141.67,Residential-Health Authorities,1819Q01_PC00017
Sandwell Metropolitan Borough Council,http://www.sandwell.gov.uk/info/200202/performance_and_spending/3233/government_procurement_cards,06-Apr-2018,Resources (Inc SIU),Virgin Trains,Assistant Chief Executive (Excl SIU),78,Public Transport,1819Q01_PC00018
Sandwell Metropolitan Borough Council,http://www.sandwell.gov.uk/info/200202/performance_and_spending/3233/government_procurement_cards,06-Apr-2018,Regeneration & Growth,STANFORD MARSH LTD,Regeneration And The Economy,4139.66,Printing Stationery&Gen Office,1819Q01_PC00019
Sandwell Metropolitan Borough Council,http://www.sandwell.gov.uk/info/200202/performance_and_spending/3233/government_procurement_cards,06-Apr-2018,Childrens Services,BILL@TRAVEL.CLOUD,Childrens Services,128.6,Public Transport,1819Q01_PC00020
Sandwell Metropolitan Borough Council,http://www.sandwell.gov.uk/info/200202/performance_and_spending/3233/government_procurement_cards,06-Apr-2018,Resources (Inc SIU),Amazon UK Marketplace,Assistant Chief Executive (Excl SIU),58.77,ICT,1819Q01_PC00021
Sandwell Metropolitan Borough Council,http://www.sandwell.gov.uk/info/200202/performance_and_spending/3233/government_procurement_cards,06-Apr-2018,Resources (Inc SIU),Amazon EU,Assistant Chief Executive (Excl SIU),8.73,ICT,1819Q01_PC00022
Sandwell Metropolitan Borough Council,http://www.sandwell.gov.uk/info/200202/performance_and_spending/3233/government_procurement_cards,09-Apr-2018,Resources (Inc SIU),PREMIER INN,Assistant Chief Executive (Excl SIU),90,Conference Expenses,1819Q01_PC00023
Sandwell Metropolitan Borough Council,http://www.sandwell.gov.uk/info/200202/performance_and_spending/3233/government_procurement_cards,09-Apr-2018,Resources (Inc SIU),WWW.WESTMINSTER-BRIEFI,Assistant Chief Executive (Excl SIU),735,Conference Expenses,1819Q01_PC00024
Sandwell Metropolitan Borough Council,http://www.sandwell.gov.uk/info/200202/performance_and_spending/3233/government_procurement_cards,09-Apr-2018,Housing & Communities,PREMIER INN,Neighbourhoods,162.5,Operational Services,1819Q01_PC00025
Sandwell Metropolitan Borough Council,http://www.sandwell.gov.uk/info/200202/performance_and_spending/3233/government_procurement_cards,09-Apr-2018,Adult Social Care Health and Wellbeing - Total,TIMPSON LTD,Total Adult Social Care,12.75,Ind. Emp Exp-Emp. Welfare,1819Q01_PC00026
Sandwell Metropolitan Borough Council,http://www.sandwell.gov.uk/info/200202/performance_and_spending/3233/government_procurement_cards,09-Apr-2018,Adult Social Care Health and Wellbeing - Total,BILL@TRAVEL.CLOUD,Public Health,94.5,Public Transport,1819Q01_PC00027
Sandwell Metropolitan Borough Council,http://www.sandwell.gov.uk/info/200202/performance_and_spending/3233/government_procurement_cards,09-Apr-2018,Adult Social Care Health and Wellbeing - Total,BILL@TRAVEL.CLOUD,Public Health,12.7,Public Transport,1819Q01_PC00028
Sandwell Metropolitan Borough Council,http://www.sandwell.gov.uk/info/200202/performance_and_spending/3233/government_procurement_cards,09-Apr-2018,Housing & Communities,Amazon UK Marketplace,Neighbourhoods,12.75,Materials & Consumables,1819Q01_PC00029
Sandwell Metropolitan Borough Council,http://www.sandwell.gov.uk/info/200202/performance_and_spending/3233/government_procurement_cards,09-Apr-2018,Housing & Communities,BILL@TRAVEL.CLOUD,Neighbourhoods,528,Public Transport,1819Q01_PC00030
Sandwell Metropolitan Borough Council,http://www.sandwell.gov.uk/info/200202/performance_and_spending/3233/government_procurement_cards,09-Apr-2018,Housing & Communities,BILL@TRAVEL.CLOUD,Neighbourhoods,38.1,Public Transport,1819Q01_PC00031
Sandwell Metropolitan Borough Council,http://www.sandwell.gov.uk/info/200202/performance_and_spending/3233/government_procurement_cards,09-Apr-2018,Total Housing Revenue Account,REGISTRARS OFFICE,Total Housing Revenue Account,11,Printing Stationery&Gen Office,1819Q01_PC00032
Sandwell Metropolitan Borough Council,http://www.sandwell.gov.uk/info/200202/performance_and_spending/3233/government_procurement_cards,09-Apr-2018,Housing & Communities,PREMIER INN,Neighbourhoods,-116.25,Operational Services,1819Q01_PC00033
Sandwell Metropolitan Borough Council,http://www.sandwell.gov.uk/info/200202/performance_and_spending/3233/government_procurement_cards,09-Apr-2018,Adult Social Care Health and Wellbeing - Total,Amazon UK Marketplace,Total Adult Social Care,39.57,Printing Stationery&Gen Office,1819Q01_PC00034
Sandwell Metropolitan Borough Council,http://www.sandwell.gov.uk/info/200202/performance_and_spending/3233/government_procurement_cards,10-Apr-2018,Resources (Inc SIU),CLYDE & CO,Assistant Chief Executive (Excl SIU),1064,Professional Services External,1819Q01_PC00035
Sandwell Metropolitan Borough Council,http://www.sandwell.gov.uk/info/200202/performance_and_spending/3233/government_procurement_cards,11-Apr-2018,Housing & Communities,AQUAID FRANCHISING LTD,Neighbourhoods,88.75,Catering Provisions,1819Q01_PC00036
Sandwell Metropolitan Borough Council,http://www.sandwell.gov.uk/info/200202/performance_and_spending/3233/government_procurement_cards,11-Apr-2018,Housing & Communities,GRAHAM EDWARDS TRAILER,Neighbourhoods,60,Fire Service Workshops,1819Q01_PC00037
Sandwell Metropolitan Borough Council,http://www.sandwell.gov.uk/info/200202/performance_and_spending/3233/government_procurement_cards,11-Apr-2018,Total Housing Revenue Account,Amazon EU,Total Housing Revenue Account,48.92,Printing Stationery&Gen Office,1819Q01_PC00038
Sandwell Metropolitan Borough Council,http://www.sandwell.gov.uk/info/200202/performance_and_spending/3233/government_procurement_cards,11-Apr-2018,Resources (Inc SIU),HMCOURTS-SERVICE.G,Assistant Chief Executive (Excl SIU),3519,Council Tax,1819Q01_PC00039
Sandwell Metropolitan Borough Council,http://www.sandwell.gov.uk/info/200202/performance_and_spending/3233/government_procurement_cards,12-Apr-2018,Housing & Communities,PREMIER INN,Neighbourhoods,443.33,Rents,1819Q01_PC00040
Sandwell Metropolitan Borough Council,http://www.sandwell.gov.uk/info/200202/performance_and_spending/3233/government_procurement_cards,12-Apr-2018,Childrens Services,SCREWFIX DIRECT,Childrens Services,47.48,R& M - Building Maint&Imp.,1819Q01_PC00041
Sandwell Metropolitan Borough Council,http://www.sandwell.gov.uk/info/200202/performance_and_spending/3233/government_procurement_cards,12-Apr-2018,Resources (Inc SIU),Amazon UK Marketplace,Assistant Chief Executive (Excl SIU),68.58,Printing Stationery&Gen Office,1819Q01_PC00042
Sandwell Metropolitan Borough Council,http://www.sandwell.gov.uk/info/200202/performance_and_spending/3233/government_procurement_cards,12-Apr-2018,Housing & Communities,Amazon UK Marketplace,Neighbourhoods,194.17,Equipment & Furniture,1819Q01_PC00043
Sandwell Metropolitan Borough Council,http://www.sandwell.gov.uk/info/200202/performance_and_spending/3233/government_procurement_cards,12-Apr-2018,Resources (Inc SIU),BILL@TRAVEL.CLOUD,Assistant Chief Executive (Excl SIU),268,Public Transport,1819Q01_PC00044
Sandwell Metropolitan Borough Council,http://www.sandwell.gov.uk/info/200202/performance_and_spending/3233/government_procurement_cards,12-Apr-2018,Resources (Inc SIU),BILL@TRAVEL.CLOUD,Assistant Chief Executive (Excl SIU),25.4,Public Transport,1819Q01_PC00045
Sandwell Metropolitan Borough Council,http://www.sandwell.gov.uk/info/200202/performance_and_spending/3233/government_procurement_cards,12-Apr-2018,Resources (Inc SIU),BILL@TRAVEL.CLOUD,Assistant Chief Executive (Excl SIU),131,Public Transport,1819Q01_PC00046
Sandwell Metropolitan Borough Council,http://www.sandwell.gov.uk/info/200202/performance_and_spending/3233/government_procurement_cards,12-Apr-2018,Resources (Inc SIU),BILL@TRAVEL.CLOUD,Assistant Chief Executive (Excl SIU),12.7,Public Transport,1819Q01_PC00047
Sandwell Metropolitan Borough Council,http://www.sandwell.gov.uk/info/200202/performance_and_spending/3233/government_procurement_cards,12-Apr-2018,Resources (Inc SIU),WWW.RYMAN.CO.UK,Assistant Chief Executive (Excl SIU),239.8,Printing Stationery&Gen Office,1819Q01_PC00048
Sandwell Metropolitan Borough Council,http://www.sandwell.gov.uk/info/200202/performance_and_spending/3233/government_procurement_cards,12-Apr-2018,Housing & Communities,Trainline,Neighbourhoods,58.4,Public Transport,1819Q01_PC00049
Sandwell Metropolitan Borough Council,http://www.sandwell.gov.uk/info/200202/performance_and_spending/3233/government_procurement_cards,12-Apr-2018,Housing & Communities,Trainline,Neighbourhoods,66.5,Public Transport,1819Q01_PC00050
Sandwell Metropolitan Borough Council,http://www.sandwell.gov.uk/info/200202/performance_and_spending/3233/government_procurement_cards,12-Apr-2018,Housing & Communities,Trainline,Neighbourhoods,59.4,Public Transport,1819Q01_PC00051
Sandwell Metropolitan Borough Council,http://www.sandwell.gov.uk/info/200202/performance_and_spending/3233/government_procurement_cards,12-Apr-2018,Resources (Inc SIU),THE POST OFFICE,Assistant Chief Executive (Excl SIU),7.3,"Postages, Carriage & Courier Services",1819Q01_PC00052
Sandwell Metropolitan Borough Council,http://www.sandwell.gov.uk/info/200202/performance_and_spending/3233/government_procurement_cards,13-Apr-2018,Housing & Communities,WWW.HADDONSTONE.COM,Neighbourhoods,194.17,R& M - Building Maint&Imp.,1819Q01_PC00053
Sandwell Metropolitan Borough Council,http://www.sandwell.gov.uk/info/200202/performance_and_spending/3233/government_procurement_cards,13-Apr-2018,Housing & Communities,FIESTA FURNITURE,Neighbourhoods,299.99,Equipment & Furniture,1819Q01_PC00054
Sandwell Metropolitan Borough Council,http://www.sandwell.gov.uk/info/200202/performance_and_spending/3233/government_procurement_cards,13-Apr-2018,Childrens Services,Trainline,Childrens Services,99,Public Transport,1819Q01_PC00055
Sandwell Metropolitan Borough Council,http://www.sandwell.gov.uk/info/200202/performance_and_spending/3233/government_procurement_cards,13-Apr-2018,Housing & Communities,POST OFFICE COUNTER,Neighbourhoods,915,Licences&Test Fees,1819Q01_PC00056
Sandwell Metropolitan Borough Council,http://www.sandwell.gov.uk/info/200202/performance_and_spending/3233/government_procurement_cards,13-Apr-2018,Housing & Communities,POST OFFICE COUNTER,Neighbourhoods,1000,Licences&Test Fees,1819Q01_PC00057
Sandwell Metropolitan Borough Council,http://www.sandwell.gov.uk/info/200202/performance_and_spending/3233/government_procurement_cards,13-Apr-2018,Housing & Communities,POST OFFICE COUNTER,Neighbourhoods,1000,Licences&Test Fees,1819Q01_PC00058
Sandwell Metropolitan Borough Council,http://www.sandwell.gov.uk/info/200202/performance_and_spending/3233/government_procurement_cards,13-Apr-2018,Housing & Communities,POST OFFICE COUNTER,Neighbourhoods,915,Licences&Test Fees,1819Q01_PC00059
Sandwell Metropolitan Borough Council,http://www.sandwell.gov.uk/info/200202/performance_and_spending/3233/government_procurement_cards,13-Apr-2018,Housing & Communities,POST OFFICE COUNTER,Neighbourhoods,1000,Licences&Test Fees,1819Q01_PC00060
Sandwell Metropolitan Borough Council,http://www.sandwell.gov.uk/info/200202/performance_and_spending/3233/government_procurement_cards,13-Apr-2018,Housing & Communities,POST OFFICE COUNTER,Neighbourhoods,1000,Licences&Test Fees,1819Q01_PC00061
Sandwell Metropolitan Borough Council,http://www.sandwell.gov.uk/info/200202/performance_and_spending/3233/government_procurement_cards,13-Apr-2018,Housing & Communities,POST OFFICE COUNTER,Neighbourhoods,1000,Licences&Test Fees,1819Q01_PC00062
Sandwell Metropolitan Borough Council,http://www.sandwell.gov.uk/info/200202/performance_and_spending/3233/government_procurement_cards,13-Apr-2018,Housing & Communities,POST OFFICE COUNTER,Neighbourhoods,1250,Licences&Test Fees,1819Q01_PC00063
Sandwell Metropolitan Borough Council,http://www.sandwell.gov.uk/info/200202/performance_and_spending/3233/government_procurement_cards,13-Apr-2018,Resources (Inc SIU),SAINSBURYS SACAT0558,Assistant Chief Executive (Excl SIU),16,Printing Stationery&Gen Office,1819Q01_PC00064
Sandwell Metropolitan Borough Council,http://www.sandwell.gov.uk/info/200202/performance_and_spending/3233/government_procurement_cards,13-Apr-2018,Resources (Inc SIU),TESCO STORES 6197,Assistant Chief Executive (Excl SIU),6.5,Printing Stationery&Gen Office,1819Q01_PC00065
Sandwell Metropolitan Borough Council,http://www.sandwell.gov.uk/info/200202/performance_and_spending/3233/government_procurement_cards,13-Apr-2018,Resources (Inc SIU),HAYMARKET MEDIA GROUP,Assistant Chief Executive (Excl SIU),1178,Conference Expenses,1819Q01_PC00066
Sandwell Metropolitan Borough Council,http://www.sandwell.gov.uk/info/200202/performance_and_spending/3233/government_procurement_cards,13-Apr-2018,Housing & Communities,EDGBASTON PALACE,Neighbourhoods,466.67,Rents,1819Q01_PC00067
Sandwell Metropolitan Borough Council,http://www.sandwell.gov.uk/info/200202/performance_and_spending/3233/government_procurement_cards,13-Apr-2018,Adult Social Care Health and Wellbeing - Total,HOME COMFORTS STON,Total Adult Social Care,560,Equipment & Furniture,1819Q01_PC00068
Sandwell Metropolitan Borough Council,http://www.sandwell.gov.uk/info/200202/performance_and_spending/3233/government_procurement_cards,16-Apr-2018,Housing & Communities,PREMIER INN,Neighbourhoods,384.58,Rents,1819Q01_PC00069
Sandwell Metropolitan Borough Council,http://www.sandwell.gov.uk/info/200202/performance_and_spending/3233/government_procurement_cards,16-Apr-2018,Resources (Inc SIU),REDACTIVE,Assistant Chief Executive (Excl SIU),266.67,Conference Expenses,1819Q01_PC00070
Sandwell Metropolitan Borough Council,http://www.sandwell.gov.uk/info/200202/performance_and_spending/3233/government_procurement_cards,16-Apr-2018,Resources (Inc SIU),REDACTIVE,Assistant Chief Executive (Excl SIU),266.67,Conference Expenses,1819Q01_PC00071
Sandwell Metropolitan Borough Council,http://www.sandwell.gov.uk/info/200202/performance_and_spending/3233/government_procurement_cards,16-Apr-2018,Resources (Inc SIU),REDACTIVE,Assistant Chief Executive (Excl SIU),266.67,Conference Expenses,1819Q01_PC00072
Sandwell Metropolitan Borough Council,http://www.sandwell.gov.uk/info/200202/performance_and_spending/3233/government_procurement_cards,16-Apr-2018,Housing & Communities,PREMIER INN,Neighbourhoods,950,Operational Services,1819Q01_PC00073
Sandwell Metropolitan Borough Council,http://www.sandwell.gov.uk/info/200202/performance_and_spending/3233/government_procurement_cards,16-Apr-2018,Resources (Inc SIU),PAYPAL  MACROPACKAG,Assistant Chief Executive (Excl SIU),17.85,Printing Stationery&Gen Office,1819Q01_PC00074
Sandwell Metropolitan Borough Council,http://www.sandwell.gov.uk/info/200202/performance_and_spending/3233/government_procurement_cards,16-Apr-2018,Total Housing Revenue Account,BILL@TRAVEL.CLOUD,Total Housing Revenue Account,40.9,Public Transport,1819Q01_PC00075
Sandwell Metropolitan Borough Council,http://www.sandwell.gov.uk/info/200202/performance_and_spending/3233/government_procurement_cards,16-Apr-2018,Resources (Inc SIU),WP-ACAS,Assistant Chief Executive (Excl SIU),250,Ind. Emp Exp-Staff Dev&Training,1819Q01_PC00076
Sandwell Metropolitan Borough Council,http://www.sandwell.gov.uk/info/200202/performance_and_spending/3233/government_procurement_cards,16-Apr-2018,Resources (Inc SIU),PREMIER INN,Assistant Chief Executive (Excl SIU),-8.75,Conference Expenses,1819Q01_PC00077
Sandwell Metropolitan Borough Council,http://www.sandwell.gov.uk/info/200202/performance_and_spending/3233/government_procurement_cards,16-Apr-2018,Resources (Inc SIU),HAYMARKET MEDIA GROUP,Assistant Chief Executive (Excl SIU),675,Conference Expenses,1819Q01_PC00078
Sandwell Metropolitan Borough Council,http://www.sandwell.gov.uk/info/200202/performance_and_spending/3233/government_procurement_cards,16-Apr-2018,Resources (Inc SIU),Amazon UK Marketplace,Assistant Chief Executive (Excl SIU),20.77,Printing Stationery&Gen Office,1819Q01_PC00079
Sandwell Metropolitan Borough Council,http://www.sandwell.gov.uk/info/200202/performance_and_spending/3233/government_procurement_cards,16-Apr-2018,Resources (Inc SIU),PREMIER INN,Assistant Chief Executive (Excl SIU),515,Conference Expenses,1819Q01_PC00080
Sandwell Metropolitan Borough Council,http://www.sandwell.gov.uk/info/200202/performance_and_spending/3233/government_procurement_cards,17-Apr-2018,Childrens Services,LEADERSHIP MATTERS,Childrens Services,195,Ind. Emp Exp-Staff Dev&Training,1819Q01_PC00081
Sandwell Metropolitan Borough Council,http://www.sandwell.gov.uk/info/200202/performance_and_spending/3233/government_procurement_cards,17-Apr-2018,Housing & Communities,SYTNER OLDBURY,Neighbourhoods,42.43,Fire Service Workshops,1819Q01_PC00082
Sandwell Metropolitan Borough Council,http://www.sandwell.gov.uk/info/200202/performance_and_spending/3233/government_procurement_cards,17-Apr-2018,Resources (Inc SIU),WWW.MONEYCLAIM.GOV,Assistant Chief Executive (Excl SIU),105,Rent Allowances Local Scheme,1819Q01_PC00083
Sandwell Metropolitan Borough Council,http://www.sandwell.gov.uk/info/200202/performance_and_spending/3233/government_procurement_cards,17-Apr-2018,Childrens Services,ASDA STORES LTD 5865,Childrens Services,7.46,Catering Provisions,1819Q01_PC00084
Sandwell Metropolitan Borough Council,http://www.sandwell.gov.uk/info/200202/performance_and_spending/3233/government_procurement_cards,17-Apr-2018,Adult Social Care Health and Wellbeing - Total,BILL@TRAVEL.CLOUD,Public Health,99,Public Transport,1819Q01_PC00085
Sandwell Metropolitan Borough Council,http://www.sandwell.gov.uk/info/200202/performance_and_spending/3233/government_procurement_cards,17-Apr-2018,Adult Social Care Health and Wellbeing - Total,BILL@TRAVEL.CLOUD,Public Health,12.7,Public Transport,1819Q01_PC00086
Sandwell Metropolitan Borough Council,http://www.sandwell.gov.uk/info/200202/performance_and_spending/3233/government_procurement_cards,17-Apr-2018,Resources (Inc SIU),Virgin Trains,Assistant Chief Executive (Excl SIU),169.25,Public Transport,1819Q01_PC00087
Sandwell Metropolitan Borough Council,http://www.sandwell.gov.uk/info/200202/performance_and_spending/3233/government_procurement_cards,17-Apr-2018,Resources (Inc SIU),Amazon UK Marketplace,Assistant Chief Executive (Excl SIU),29.95,Printing Stationery&Gen Office,1819Q01_PC00088
Sandwell Metropolitan Borough Council,http://www.sandwell.gov.uk/info/200202/performance_and_spending/3233/government_procurement_cards,18-Apr-2018,Childrens Services,Amazon Prime,Childrens Services,-6.66,"Postages, Carriage & Courier Services",1819Q01_PC00089
Sandwell Metropolitan Borough Council,http://www.sandwell.gov.uk/info/200202/performance_and_spending/3233/government_procurement_cards,18-Apr-2018,Childrens Services,ASDA SUPERSTORE 04236,Childrens Services,12.08,Materials & Consumables,1819Q01_PC00090
Sandwell Metropolitan Borough Council,http://www.sandwell.gov.uk/info/200202/performance_and_spending/3233/government_procurement_cards,18-Apr-2018,Total Housing Revenue Account,ARCO LTD,Total Housing Revenue Account,66.66,Protective Clothing&Uniforms,1819Q01_PC00091
Sandwell Metropolitan Borough Council,http://www.sandwell.gov.uk/info/200202/performance_and_spending/3233/government_procurement_cards,18-Apr-2018,Total Housing Revenue Account,HERAS UK FENCING SYSTE,Total Housing Revenue Account,3236.44,Materials & Consumables,1819Q01_PC00092
Sandwell Metropolitan Borough Council,http://www.sandwell.gov.uk/info/200202/performance_and_spending/3233/government_procurement_cards,18-Apr-2018,Resources (Inc SIU),Amazon EU,Assistant Chief Executive (Excl SIU),150.17,ICT,1819Q01_PC00093
Sandwell Metropolitan Borough Council,http://www.sandwell.gov.uk/info/200202/performance_and_spending/3233/government_procurement_cards,18-Apr-2018,Childrens Services,TIMICO,Childrens Services,5.78,ICT,1819Q01_PC00094
Sandwell Metropolitan Borough Council,http://www.sandwell.gov.uk/info/200202/performance_and_spending/3233/government_procurement_cards,18-Apr-2018,Total Housing Revenue Account,Amazon UK Marketplace,Total Housing Revenue Account,10.82,Materials & Consumables,1819Q01_PC00095
Sandwell Metropolitan Borough Council,http://www.sandwell.gov.uk/info/200202/performance_and_spending/3233/government_procurement_cards,18-Apr-2018,Total Housing Revenue Account,Amazon UK Marketplace,Total Housing Revenue Account,70.07,Materials & Consumables,1819Q01_PC00096
Sandwell Metropolitan Borough Council,http://www.sandwell.gov.uk/info/200202/performance_and_spending/3233/government_procurement_cards,18-Apr-2018,Resources (Inc SIU),WWW.OFFICEMONSTER.,Assistant Chief Executive (Excl SIU),22.85,Printing Stationery&Gen Office,1819Q01_PC00097
Sandwell Metropolitan Borough Council,http://www.sandwell.gov.uk/info/200202/performance_and_spending/3233/government_procurement_cards,18-Apr-2018,Adult Social Care Health and Wellbeing - Total,Amazon UK Marketplace,Total Adult Social Care,23.12,Printing Stationery&Gen Office,1819Q01_PC00098
Sandwell Metropolitan Borough Council,http://www.sandwell.gov.uk/info/200202/performance_and_spending/3233/government_procurement_cards,18-Apr-2018,Childrens Services,ASDA SUPERSTORE 04236,Childrens Services,33.34,Catering Provisions,1819Q01_PC00099
Sandwell Metropolitan Borough Council,http://www.sandwell.gov.uk/info/200202/performance_and_spending/3233/government_procurement_cards,18-Apr-2018,Childrens Services,ARCO LTD,Childrens Services,13.04,Protective Clothing&Uniforms,1819Q01_PC00100
Sandwell Metropolitan Borough Council,http://www.sandwell.gov.uk/info/200202/performance_and_spending/3233/government_procurement_cards,18-Apr-2018,Regeneration & Growth,WWW.NECCONTRACT.COM,Regeneration And The Economy,903,Printing Stationery&Gen Office,1819Q01_PC00101
Sandwell Metropolitan Borough Council,http://www.sandwell.gov.uk/info/200202/performance_and_spending/3233/government_procurement_cards,18-Apr-2018,Housing & Communities,Amazon UK Marketplace,Neighbourhoods,4.04,R& M - Building Maint&Imp.,1819Q01_PC00102
Sandwell Metropolitan Borough Council,http://www.sandwell.gov.uk/info/200202/performance_and_spending/3233/government_procurement_cards,18-Apr-2018,Resources (Inc SIU),CHARTERED INST OF LEGA,Assistant Chief Executive (Excl SIU),260,Ind. Emp Exp-Staff Dev&Training,1819Q01_PC00103
Sandwell Metropolitan Borough Council,http://www.sandwell.gov.uk/info/200202/performance_and_spending/3233/government_procurement_cards,18-Apr-2018,Childrens Services,Trainline,Childrens Services,26.75,Public Transport,1819Q01_PC00104
Sandwell Metropolitan Borough Council,http://www.sandwell.gov.uk/info/200202/performance_and_spending/3233/government_procurement_cards,19-Apr-2018,Housing & Communities,Amazon UK Marketplace,Neighbourhoods,23.31,R& M - Building Maint&Imp.,1819Q01_PC00105
Sandwell Metropolitan Borough Council,http://www.sandwell.gov.uk/info/200202/performance_and_spending/3233/government_procurement_cards,19-Apr-2018,Housing & Communities,Amazon UK Marketplace,Neighbourhoods,17.46,Equipment & Furniture,1819Q01_PC00106
Sandwell Metropolitan Borough Council,http://www.sandwell.gov.uk/info/200202/performance_and_spending/3233/government_procurement_cards,19-Apr-2018,Resources (Inc SIU),SAINSBURYS SACAT0558,Assistant Chief Executive (Excl SIU),2.92,Catering Provisions,1819Q01_PC00107
Sandwell Metropolitan Borough Council,http://www.sandwell.gov.uk/info/200202/performance_and_spending/3233/government_procurement_cards,19-Apr-2018,Resources (Inc SIU),SAINSBURYS SACAT0558,Assistant Chief Executive (Excl SIU),11.12,Catering Provisions,1819Q01_PC00108
Sandwell Metropolitan Borough Council,http://www.sandwell.gov.uk/info/200202/performance_and_spending/3233/government_procurement_cards,19-Apr-2018,Childrens Services,Spotify P05A8A7C10,Childrens Services,8.32,Materials & Consumables,1819Q01_PC00109
Sandwell Metropolitan Borough Council,http://www.sandwell.gov.uk/info/200202/performance_and_spending/3233/government_procurement_cards,19-Apr-2018,Childrens Services,Virgin Trains,Childrens Services,109,Public Transport,1819Q01_PC00110
Sandwell Metropolitan Borough Council,http://www.sandwell.gov.uk/info/200202/performance_and_spending/3233/government_procurement_cards,19-Apr-2018,Housing & Communities,Amazon EU,Neighbourhoods,22.47,R& M - Building Maint&Imp.,1819Q01_PC00111
Sandwell Metropolitan Borough Council,http://www.sandwell.gov.uk/info/200202/performance_and_spending/3233/government_procurement_cards,19-Apr-2018,Total Housing Revenue Account,CAPITA GAS,Total Housing Revenue Account,53,Professional Services External,1819Q01_PC00112
Sandwell Metropolitan Borough Council,http://www.sandwell.gov.uk/info/200202/performance_and_spending/3233/government_procurement_cards,19-Apr-2018,Housing & Communities,TESCO - Seller_IST_1_2,Neighbourhoods,194.72,Materials & Consumables,1819Q01_PC00113
Sandwell Metropolitan Borough Council,http://www.sandwell.gov.uk/info/200202/performance_and_spending/3233/government_procurement_cards,19-Apr-2018,Total Housing Revenue Account,Amazon UK Marketplace,Total Housing Revenue Account,115.95,Materials & Consumables,1819Q01_PC00114
Sandwell Metropolitan Borough Council,http://www.sandwell.gov.uk/info/200202/performance_and_spending/3233/government_procurement_cards,19-Apr-2018,Childrens Services,ANIMOTO INC,Childrens Services,192,Materials & Consumables,1819Q01_PC00115
Sandwell Metropolitan Borough Council,http://www.sandwell.gov.uk/info/200202/performance_and_spending/3233/government_procurement_cards,19-Apr-2018,Adult Social Care Health and Wellbeing - Total,Trainline,Total Adult Social Care,353.5,Public Transport,1819Q01_PC00116
Sandwell Metropolitan Borough Council,http://www.sandwell.gov.uk/info/200202/performance_and_spending/3233/government_procurement_cards,19-Apr-2018,Adult Social Care Health and Wellbeing - Total,Trainline,Total Adult Social Care,49.9,Public Transport,1819Q01_PC00117
Sandwell Metropolitan Borough Council,http://www.sandwell.gov.uk/info/200202/performance_and_spending/3233/government_procurement_cards,19-Apr-2018,Regeneration & Growth,Amazon UK Marketplace,Regeneration And The Economy,3.99,Printing Stationery&Gen Office,1819Q01_PC00118
Sandwell Metropolitan Borough Council,http://www.sandwell.gov.uk/info/200202/performance_and_spending/3233/government_procurement_cards,19-Apr-2018,Resources (Inc SIU),Amazon EU,Assistant Chief Executive (Excl SIU),65,Printing Stationery&Gen Office,1819Q01_PC00119
Sandwell Metropolitan Borough Council,http://www.sandwell.gov.uk/info/200202/performance_and_spending/3233/government_procurement_cards,19-Apr-2018,Housing & Communities,WWW.VDOSHOP.CO.UK,Neighbourhoods,850,Fire Service Workshops,1819Q01_PC00120
Sandwell Metropolitan Borough Council,http://www.sandwell.gov.uk/info/200202/performance_and_spending/3233/government_procurement_cards,19-Apr-2018,Housing & Communities,WWW.VDOSHOP.CO.UK,Neighbourhoods,500,Fire Service Workshops,1819Q01_PC00121
Sandwell Metropolitan Borough Council,http://www.sandwell.gov.uk/info/200202/performance_and_spending/3233/government_procurement_cards,19-Apr-2018,Resources (Inc SIU),Amazon EU,Assistant Chief Executive (Excl SIU),12.9,ICT,1819Q01_PC00122
Sandwell Metropolitan Borough Council,http://www.sandwell.gov.uk/info/200202/performance_and_spending/3233/government_procurement_cards,20-Apr-2018,Childrens Services,SPORTSDIRECT.COM,Childrens Services,75.48,Protective Clothing&Uniforms,1819Q01_PC00123
Sandwell Metropolitan Borough Council,http://www.sandwell.gov.uk/info/200202/performance_and_spending/3233/government_procurement_cards,20-Apr-2018,Childrens Services,HANDY DRY CLEANERS,Childrens Services,288.33,Laundry,1819Q01_PC00124
Sandwell Metropolitan Borough Council,http://www.sandwell.gov.uk/info/200202/performance_and_spending/3233/government_procurement_cards,20-Apr-2018,Housing & Communities,Amazon EU,Neighbourhoods,96.26,Equipment & Furniture,1819Q01_PC00125
Sandwell Metropolitan Borough Council,http://www.sandwell.gov.uk/info/200202/performance_and_spending/3233/government_procurement_cards,20-Apr-2018,Total Housing Revenue Account,HAMPSHIREFL,Total Housing Revenue Account,78.84,Materials & Consumables,1819Q01_PC00126
Sandwell Metropolitan Borough Council,http://www.sandwell.gov.uk/info/200202/performance_and_spending/3233/government_procurement_cards,20-Apr-2018,Childrens Services,Amazon UK Marketplace,Childrens Services,34.94,Advertising & Publicity,1819Q01_PC00127
Sandwell Metropolitan Borough Council,http://www.sandwell.gov.uk/info/200202/performance_and_spending/3233/government_procurement_cards,20-Apr-2018,Housing & Communities,BELL FLOW SYSTEMS LTD,Neighbourhoods,197.85,Catering Provisions,1819Q01_PC00128
Sandwell Metropolitan Borough Council,http://www.sandwell.gov.uk/info/200202/performance_and_spending/3233/government_procurement_cards,20-Apr-2018,Resources (Inc SIU),WWW.PARAGON.NET.UK RT,Assistant Chief Executive (Excl SIU),59.98,ICT,1819Q01_PC00129
Sandwell Metropolitan Borough Council,http://www.sandwell.gov.uk/info/200202/performance_and_spending/3233/government_procurement_cards,20-Apr-2018,Resources (Inc SIU),BILL@TRAVEL.CLOUD,Assistant Chief Executive (Excl SIU),352,Public Transport,1819Q01_PC00130
Sandwell Metropolitan Borough Council,http://www.sandwell.gov.uk/info/200202/performance_and_spending/3233/government_procurement_cards,20-Apr-2018,Corporate Management,SAINSBURYS 0541,Corporate Management,17.6,Civic Events,1819Q01_PC00131
Sandwell Metropolitan Borough Council,http://www.sandwell.gov.uk/info/200202/performance_and_spending/3233/government_procurement_cards,20-Apr-2018,Resources (Inc SIU),SANDWELL M.B.C.,Assistant Chief Executive (Excl SIU),23,Subscriptions,1819Q01_PC00132
Sandwell Metropolitan Borough Council,http://www.sandwell.gov.uk/info/200202/performance_and_spending/3233/government_procurement_cards,20-Apr-2018,Resources (Inc SIU),PAYPAL  THINKUPTHEM,Assistant Chief Executive (Excl SIU),21.64,ICT,1819Q01_PC00133
Sandwell Metropolitan Borough Council,http://www.sandwell.gov.uk/info/200202/performance_and_spending/3233/government_procurement_cards,20-Apr-2018,Housing & Communities,BILL@TRAVEL.CLOUD,Neighbourhoods,12.7,Public Transport,1819Q01_PC00134
Sandwell Metropolitan Borough Council,http://www.sandwell.gov.uk/info/200202/performance_and_spending/3233/government_procurement_cards,20-Apr-2018,Housing & Communities,BILL@TRAVEL.CLOUD,Neighbourhoods,154,Public Transport,1819Q01_PC00135
Sandwell Metropolitan Borough Council,http://www.sandwell.gov.uk/info/200202/performance_and_spending/3233/government_procurement_cards,20-Apr-2018,Adult Social Care Health and Wellbeing - Total,ASDA STORES,Total Adult Social Care,44.68,Ind. Emp Exp-Staff Dev&Training,1819Q01_PC00136
Sandwell Metropolitan Borough Council,http://www.sandwell.gov.uk/info/200202/performance_and_spending/3233/government_procurement_cards,20-Apr-2018,Childrens Services,Amazon UK Marketplace,Childrens Services,12.98,ICT,1819Q01_PC00137
Sandwell Metropolitan Borough Council,http://www.sandwell.gov.uk/info/200202/performance_and_spending/3233/government_procurement_cards,23-Apr-2018,Housing & Communities,PREMIER INN,Neighbourhoods,60,Operational Services,1819Q01_PC00138
Sandwell Metropolitan Borough Council,http://www.sandwell.gov.uk/info/200202/performance_and_spending/3233/government_procurement_cards,23-Apr-2018,Individual School Budgets With Inclusion,EB  ASSESSING THE EDUC,Individual School Budgets With Inclusion,95,Ind. Emp Exp-Staff Dev&Training,1819Q01_PC00139
Sandwell Metropolitan Borough Council,http://www.sandwell.gov.uk/info/200202/performance_and_spending/3233/government_procurement_cards,23-Apr-2018,Resources (Inc SIU),LAG EDCTION SVC,Assistant Chief Executive (Excl SIU),360,Subscriptions,1819Q01_PC00140
Sandwell Metropolitan Borough Council,http://www.sandwell.gov.uk/info/200202/performance_and_spending/3233/government_procurement_cards,23-Apr-2018,Total Housing Revenue Account,PP ACTIONLGVPC,Total Housing Revenue Account,245,Professional Services External,1819Q01_PC00141
Sandwell Metropolitan Borough Council,http://www.sandwell.gov.uk/info/200202/performance_and_spending/3233/government_procurement_cards,23-Apr-2018,Housing & Communities,BILL@TRAVEL.CLOUD,Neighbourhoods,12.7,Public Transport,1819Q01_PC00142
Sandwell Metropolitan Borough Council,http://www.sandwell.gov.uk/info/200202/performance_and_spending/3233/government_procurement_cards,23-Apr-2018,Housing & Communities,BILL@TRAVEL.CLOUD,Neighbourhoods,182,Public Transport,1819Q01_PC00143
Sandwell Metropolitan Borough Council,http://www.sandwell.gov.uk/info/200202/performance_and_spending/3233/government_procurement_cards,23-Apr-2018,Resources (Inc SIU),BILL@TRAVEL.CLOUD,Assistant Chief Executive (Excl SIU),528,Public Transport,1819Q01_PC00144
Sandwell Metropolitan Borough Council,http://www.sandwell.gov.uk/info/200202/performance_and_spending/3233/government_procurement_cards,23-Apr-2018,Resources (Inc SIU),BILL@TRAVEL.CLOUD,Assistant Chief Executive (Excl SIU),38.1,Public Transport,1819Q01_PC00145
Sandwell Metropolitan Borough Council,http://www.sandwell.gov.uk/info/200202/performance_and_spending/3233/government_procurement_cards,23-Apr-2018,Adult Social Care Health and Wellbeing - Total,Trainline,Total Adult Social Care,119.3,Public Transport,1819Q01_PC00146
Sandwell Metropolitan Borough Council,http://www.sandwell.gov.uk/info/200202/performance_and_spending/3233/government_procurement_cards,23-Apr-2018,Adult Social Care Health and Wellbeing - Total,Trainline,Total Adult Social Care,137.5,Public Transport,1819Q01_PC00147
Sandwell Metropolitan Borough Council,http://www.sandwell.gov.uk/info/200202/performance_and_spending/3233/government_procurement_cards,23-Apr-2018,Housing & Communities,EDGBASTON PALACE,Neighbourhoods,275,Rents,1819Q01_PC00148
Sandwell Metropolitan Borough Council,http://www.sandwell.gov.uk/info/200202/performance_and_spending/3233/government_procurement_cards,23-Apr-2018,Regeneration & Growth,Amazon EU,Regeneration And The Economy,13.88,Equipment & Furniture,1819Q01_PC00149
Sandwell Metropolitan Borough Council,http://www.sandwell.gov.uk/info/200202/performance_and_spending/3233/government_procurement_cards,23-Apr-2018,Housing & Communities,Amazon EU,Neighbourhoods,18.69,Materials & Consumables,1819Q01_PC00150
Sandwell Metropolitan Borough Council,http://www.sandwell.gov.uk/info/200202/performance_and_spending/3233/government_procurement_cards,23-Apr-2018,Housing & Communities,Amazon UK Marketplace,Neighbourhoods,23.71,Materials & Consumables,1819Q01_PC00151
Sandwell Metropolitan Borough Council,http://www.sandwell.gov.uk/info/200202/performance_and_spending/3233/government_procurement_cards,24-Apr-2018,Housing & Communities,Amazon UK Marketplace,Neighbourhoods,5.6,Materials & Consumables,1819Q01_PC00152
Sandwell Metropolitan Borough Council,http://www.sandwell.gov.uk/info/200202/performance_and_spending/3233/government_procurement_cards,24-Apr-2018,Total Housing Revenue Account,Amazon UK Marketplace,Total Housing Revenue Account,39.16,Materials & Consumables,1819Q01_PC00153
Sandwell Metropolitan Borough Council,http://www.sandwell.gov.uk/info/200202/performance_and_spending/3233/government_procurement_cards,24-Apr-2018,Childrens Services,DUNELM LTD,Childrens Services,65,R& M - Building Maint&Imp.,1819Q01_PC00154
Sandwell Metropolitan Borough Council,http://www.sandwell.gov.uk/info/200202/performance_and_spending/3233/government_procurement_cards,24-Apr-2018,Childrens Services,THE RANGE,Childrens Services,33.3,R& M - Building Maint&Imp.,1819Q01_PC00155
Sandwell Metropolitan Borough Council,http://www.sandwell.gov.uk/info/200202/performance_and_spending/3233/government_procurement_cards,24-Apr-2018,Regeneration & Growth,SMARTCARD,Regeneration And The Economy,149,Materials & Consumables,1819Q01_PC00156
Sandwell Metropolitan Borough Council,http://www.sandwell.gov.uk/info/200202/performance_and_spending/3233/government_procurement_cards,24-Apr-2018,Housing & Communities,POUNDLAND,Neighbourhoods,9.17,Materials & Consumables,1819Q01_PC00157
Sandwell Metropolitan Borough Council,http://www.sandwell.gov.uk/info/200202/performance_and_spending/3233/government_procurement_cards,24-Apr-2018,Housing & Communities,Amazon EU,Neighbourhoods,11.8,Materials & Consumables,1819Q01_PC00158
Sandwell Metropolitan Borough Council,http://www.sandwell.gov.uk/info/200202/performance_and_spending/3233/government_procurement_cards,24-Apr-2018,Adult Social Care Health and Wellbeing - Total,BILL@TRAVEL.CLOUD,Public Health,115.5,Public Transport,1819Q01_PC00159
Sandwell Metropolitan Borough Council,http://www.sandwell.gov.uk/info/200202/performance_and_spending/3233/government_procurement_cards,24-Apr-2018,Adult Social Care Health and Wellbeing - Total,BILL@TRAVEL.CLOUD,Public Health,12.7,Public Transport,1819Q01_PC00160
Sandwell Metropolitan Borough Council,http://www.sandwell.gov.uk/info/200202/performance_and_spending/3233/government_procurement_cards,24-Apr-2018,Adult Social Care Health and Wellbeing - Total,BILL@TRAVEL.CLOUD,Total Adult Social Care,142.6,Public Transport,1819Q01_PC00161
Sandwell Metropolitan Borough Council,http://www.sandwell.gov.uk/info/200202/performance_and_spending/3233/government_procurement_cards,24-Apr-2018,Housing & Communities,BILL@TRAVEL.CLOUD,Neighbourhoods,176,Public Transport,1819Q01_PC00162
Sandwell Metropolitan Borough Council,http://www.sandwell.gov.uk/info/200202/performance_and_spending/3233/government_procurement_cards,24-Apr-2018,Housing & Communities,Amazon UK Marketplace,Neighbourhoods,12.79,Materials & Consumables,1819Q01_PC00163
Sandwell Metropolitan Borough Council,http://www.sandwell.gov.uk/info/200202/performance_and_spending/3233/government_procurement_cards,24-Apr-2018,Housing & Communities,Amazon UK Marketplace,Neighbourhoods,3.98,Materials & Consumables,1819Q01_PC00164
Sandwell Metropolitan Borough Council,http://www.sandwell.gov.uk/info/200202/performance_and_spending/3233/government_procurement_cards,24-Apr-2018,Housing & Communities,Amazon UK Marketplace,Neighbourhoods,6.94,Materials & Consumables,1819Q01_PC00165
Sandwell Metropolitan Borough Council,http://www.sandwell.gov.uk/info/200202/performance_and_spending/3233/government_procurement_cards,24-Apr-2018,Housing & Communities,EDGBASTON PALACE,Neighbourhoods,91.67,Rents,1819Q01_PC00166
Sandwell Metropolitan Borough Council,http://www.sandwell.gov.uk/info/200202/performance_and_spending/3233/government_procurement_cards,25-Apr-2018,Housing & Communities,BILL@TRAVEL.CLOUD,Neighbourhoods,71.3,Public Transport,1819Q01_PC00167
Sandwell Metropolitan Borough Council,http://www.sandwell.gov.uk/info/200202/performance_and_spending/3233/government_procurement_cards,25-Apr-2018,Resources (Inc SIU),BILL@TRAVEL.CLOUD,Assistant Chief Executive (Excl SIU),12.7,Public Transport,1819Q01_PC00168
Sandwell Metropolitan Borough Council,http://www.sandwell.gov.uk/info/200202/performance_and_spending/3233/government_procurement_cards,25-Apr-2018,Resources (Inc SIU),BILL@TRAVEL.CLOUD,Assistant Chief Executive (Excl SIU),117,Public Transport,1819Q01_PC00169
Sandwell Metropolitan Borough Council,http://www.sandwell.gov.uk/info/200202/performance_and_spending/3233/government_procurement_cards,25-Apr-2018,Resources (Inc SIU),BILL@TRAVEL.CLOUD,Assistant Chief Executive (Excl SIU),12.7,Public Transport,1819Q01_PC00170
Sandwell Metropolitan Borough Council,http://www.sandwell.gov.uk/info/200202/performance_and_spending/3233/government_procurement_cards,25-Apr-2018,Resources (Inc SIU),BILL@TRAVEL.CLOUD,Assistant Chief Executive (Excl SIU),113,Public Transport,1819Q01_PC00171
Sandwell Metropolitan Borough Council,http://www.sandwell.gov.uk/info/200202/performance_and_spending/3233/government_procurement_cards,25-Apr-2018,Resources (Inc SIU),HMCOURT-SERVICES.G,Assistant Chief Executive (Excl SIU),110,Rent Allowances Local Scheme,1819Q01_PC00172
Sandwell Metropolitan Borough Council,http://www.sandwell.gov.uk/info/200202/performance_and_spending/3233/government_procurement_cards,25-Apr-2018,Housing & Communities,Amazon UK Marketplace,Neighbourhoods,3.9,Materials & Consumables,1819Q01_PC00173
Sandwell Metropolitan Borough Council,http://www.sandwell.gov.uk/info/200202/performance_and_spending/3233/government_procurement_cards,25-Apr-2018,Resources (Inc SIU),Amazon UK Marketplace,Assistant Chief Executive (Excl SIU),35.58,ICT,1819Q01_PC00174
Sandwell Metropolitan Borough Council,http://www.sandwell.gov.uk/info/200202/performance_and_spending/3233/government_procurement_cards,25-Apr-2018,Resources (Inc SIU),HMCOURTS-SERVICE.G,Assistant Chief Executive (Excl SIU),10,Extra Care - Govt Departments,1819Q01_PC00175
Sandwell Metropolitan Borough Council,http://www.sandwell.gov.uk/info/200202/performance_and_spending/3233/government_procurement_cards,25-Apr-2018,Adult Social Care Health and Wellbeing - Total,Trainline,Total Adult Social Care,113,Public Transport,1819Q01_PC00176
Sandwell Metropolitan Borough Council,http://www.sandwell.gov.uk/info/200202/performance_and_spending/3233/government_procurement_cards,26-Apr-2018,Resources (Inc SIU),WP-ACAS,Assistant Chief Executive (Excl SIU),-300,Ind. Emp Exp-Staff Dev&Training,1819Q01_PC00177
Sandwell Metropolitan Borough Council,http://www.sandwell.gov.uk/info/200202/performance_and_spending/3233/government_procurement_cards,26-Apr-2018,Resources (Inc SIU),TRAVELODGE,Assistant Chief Executive (Excl SIU),104.96,Conference Expenses,1819Q01_PC00178
Sandwell Metropolitan Borough Council,http://www.sandwell.gov.uk/info/200202/performance_and_spending/3233/government_procurement_cards,26-Apr-2018,Resources (Inc SIU),K-BINS LTD,Assistant Chief Executive (Excl SIU),375.7,Printing Stationery&Gen Office,1819Q01_PC00179
Sandwell Metropolitan Borough Council,http://www.sandwell.gov.uk/info/200202/performance_and_spending/3233/government_procurement_cards,26-Apr-2018,Housing & Communities,Amazon UK Marketplace,Neighbourhoods,15.48,Materials & Consumables,1819Q01_PC00180
Sandwell Metropolitan Borough Council,http://www.sandwell.gov.uk/info/200202/performance_and_spending/3233/government_procurement_cards,26-Apr-2018,Housing & Communities,Amazon UK Marketplace,Neighbourhoods,18.23,Materials & Consumables,1819Q01_PC00181
Sandwell Metropolitan Borough Council,http://www.sandwell.gov.uk/info/200202/performance_and_spending/3233/government_procurement_cards,26-Apr-2018,Resources (Inc SIU),WEST MIDLAND METRO,Assistant Chief Executive (Excl SIU),5.5,Public Transport,1819Q01_PC00182
Sandwell Metropolitan Borough Council,http://www.sandwell.gov.uk/info/200202/performance_and_spending/3233/government_procurement_cards,26-Apr-2018,Regeneration & Growth,Trainline,Regeneration And The Economy,55.5,Public Transport,1819Q01_PC00183
Sandwell Metropolitan Borough Council,http://www.sandwell.gov.uk/info/200202/performance_and_spending/3233/government_procurement_cards,26-Apr-2018,Resources (Inc SIU),BCU CASH MANAGEMENT,Assistant Chief Executive (Excl SIU),624,Professional Services External,1819Q01_PC00184
Sandwell Metropolitan Borough Council,http://www.sandwell.gov.uk/info/200202/performance_and_spending/3233/government_procurement_cards,26-Apr-2018,Resources (Inc SIU),Trainline,Assistant Chief Executive (Excl SIU),177.5,Public Transport,1819Q01_PC00185
Sandwell Metropolitan Borough Council,http://www.sandwell.gov.uk/info/200202/performance_and_spending/3233/government_procurement_cards,27-Apr-2018,Housing & Communities,TESCO DIRECT,Neighbourhoods,-194.72,Materials & Consumables,1819Q01_PC00186
Sandwell Metropolitan Borough Council,http://www.sandwell.gov.uk/info/200202/performance_and_spending/3233/government_procurement_cards,27-Apr-2018,Total Housing Revenue Account,Amazon UK Marketplace,Total Housing Revenue Account,115.95,Materials & Consumables,1819Q01_PC00187
Sandwell Metropolitan Borough Council,http://www.sandwell.gov.uk/info/200202/performance_and_spending/3233/government_procurement_cards,27-Apr-2018,Total Housing Revenue Account,Amazon UK Marketplace,Total Housing Revenue Account,169.16,Materials & Consumables,1819Q01_PC00188
Sandwell Metropolitan Borough Council,http://www.sandwell.gov.uk/info/200202/performance_and_spending/3233/government_procurement_cards,27-Apr-2018,Total Housing Revenue Account,WWW.KANE.CO.UK,Total Housing Revenue Account,214.2,Materials & Consumables,1819Q01_PC00189
Sandwell Metropolitan Borough Council,http://www.sandwell.gov.uk/info/200202/performance_and_spending/3233/government_procurement_cards,27-Apr-2018,Regeneration & Growth,Amazon EU,Regeneration And The Economy,42.15,ICT,1819Q01_PC00190
Sandwell Metropolitan Borough Council,http://www.sandwell.gov.uk/info/200202/performance_and_spending/3233/government_procurement_cards,27-Apr-2018,Housing & Communities,DVSA MOT COMP 2,Neighbourhoods,615,Licences&Test Fees,1819Q01_PC00191
Sandwell Metropolitan Borough Council,http://www.sandwell.gov.uk/info/200202/performance_and_spending/3233/government_procurement_cards,27-Apr-2018,Housing & Communities,Trainline,Neighbourhoods,121,Public Transport,1819Q01_PC00192
Sandwell Metropolitan Borough Council,http://www.sandwell.gov.uk/info/200202/performance_and_spending/3233/government_procurement_cards,27-Apr-2018,Total Housing Revenue Account,Trainline,Total Housing Revenue Account,55.1,Public Transport,1819Q01_PC00193
Sandwell Metropolitan Borough Council,http://www.sandwell.gov.uk/info/200202/performance_and_spending/3233/government_procurement_cards,27-Apr-2018,Total Housing Revenue Account,Trainline,Total Housing Revenue Account,51.5,Public Transport,1819Q01_PC00194
Sandwell Metropolitan Borough Council,http://www.sandwell.gov.uk/info/200202/performance_and_spending/3233/government_procurement_cards,27-Apr-2018,Individual School Budgets With Inclusion,Amazon UK Marketplace,Individual School Budgets With Inclusion,5.24,Equipment & Furniture,1819Q01_PC00195
Sandwell Metropolitan Borough Council,http://www.sandwell.gov.uk/info/200202/performance_and_spending/3233/government_procurement_cards,27-Apr-2018,Adult Social Care Health and Wellbeing - Total,Amazon UK Marketplace,Total Adult Social Care,26.53,Ind. Emp Exp-Staff Dev&Training,1819Q01_PC00196
Sandwell Metropolitan Borough Council,http://www.sandwell.gov.uk/info/200202/performance_and_spending/3233/government_procurement_cards,27-Apr-2018,Adult Social Care Health and Wellbeing - Total,Amazon UK Marketplace,Total Adult Social Care,3.9,Ind. Emp Exp-Staff Dev&Training,1819Q01_PC00197
Sandwell Metropolitan Borough Council,http://www.sandwell.gov.uk/info/200202/performance_and_spending/3233/government_procurement_cards,27-Apr-2018,Adult Social Care Health and Wellbeing - Total,Amazon UK Marketplace,Total Adult Social Care,2.98,Ind. Emp Exp-Staff Dev&Training,1819Q01_PC00198
Sandwell Metropolitan Borough Council,http://www.sandwell.gov.uk/info/200202/performance_and_spending/3233/government_procurement_cards,27-Apr-2018,Adult Social Care Health and Wellbeing - Total,Amazon UK Marketplace,Total Adult Social Care,2.97,Ind. Emp Exp-Staff Dev&Training,1819Q01_PC00199
Sandwell Metropolitan Borough Council,http://www.sandwell.gov.uk/info/200202/performance_and_spending/3233/government_procurement_cards,27-Apr-2018,Housing & Communities,W M MORRISON PLC,Neighbourhoods,142.83,Equipment & Furniture,1819Q01_PC00200
Sandwell Metropolitan Borough Council,http://www.sandwell.gov.uk/info/200202/performance_and_spending/3233/government_procurement_cards,27-Apr-2018,Total Housing Revenue Account,Amazon UK Marketplace,Total Housing Revenue Account,16.15,Materials & Consumables,1819Q01_PC00201
Sandwell Metropolitan Borough Council,http://www.sandwell.gov.uk/info/200202/performance_and_spending/3233/government_procurement_cards,30-Apr-2018,Resources (Inc SIU),WWW.OFFICEFURNITUREONL,Assistant Chief Executive (Excl SIU),82,Equipment & Furniture,1819Q01_PC00202
Sandwell Metropolitan Borough Council,http://www.sandwell.gov.uk/info/200202/performance_and_spending/3233/government_procurement_cards,30-Apr-2018,Adult Social Care Health and Wellbeing - Total,BILL@TRAVEL.CLOUD,Total Adult Social Care,201,Public Transport,1819Q01_PC00203
Sandwell Metropolitan Borough Council,http://www.sandwell.gov.uk/info/200202/performance_and_spending/3233/government_procurement_cards,30-Apr-2018,Adult Social Care Health and Wellbeing - Total,BILL@TRAVEL.CLOUD,Total Adult Social Care,12.7,Public Transport,1819Q01_PC00204
Sandwell Metropolitan Borough Council,http://www.sandwell.gov.uk/info/200202/performance_and_spending/3233/government_procurement_cards,30-Apr-2018,Adult Social Care Health and Wellbeing - Total,BILL@TRAVEL.CLOUD,Total Adult Social Care,68.9,Public Transport,1819Q01_PC00205
Sandwell Metropolitan Borough Council,http://www.sandwell.gov.uk/info/200202/performance_and_spending/3233/government_procurement_cards,30-Apr-2018,Housing & Communities,Amazon UK Marketplace,Neighbourhoods,14,Materials & Consumables,1819Q01_PC00206
Sandwell Metropolitan Borough Council,http://www.sandwell.gov.uk/info/200202/performance_and_spending/3233/government_procurement_cards,30-Apr-2018,Housing & Communities,Amazon UK Marketplace,Neighbourhoods,24.79,Materials & Consumables,1819Q01_PC00207
Sandwell Metropolitan Borough Council,http://www.sandwell.gov.uk/info/200202/performance_and_spending/3233/government_procurement_cards,30-Apr-2018,Resources (Inc SIU),Virgin Trains,Assistant Chief Executive (Excl SIU),30.5,Public Transport,1819Q01_PC00208
Sandwell Metropolitan Borough Council,http://www.sandwell.gov.uk/info/200202/performance_and_spending/3233/government_procurement_cards,30-Apr-2018,Total Housing Revenue Account,Amazon UK Marketplace,Total Housing Revenue Account,64.74,Materials & Consumables,1819Q01_PC00209
Sandwell Metropolitan Borough Council,http://www.sandwell.gov.uk/info/200202/performance_and_spending/3233/government_procurement_cards,30-Apr-2018,Individual School Budgets With Inclusion,Amazon UK Marketplace,Individual School Budgets With Inclusion,26.19,Materials & Consumables,1819Q01_PC00210
Sandwell Metropolitan Borough Council,http://www.sandwell.gov.uk/info/200202/performance_and_spending/3233/government_procurement_cards,30-Apr-2018,Individual School Budgets With Inclusion,Amazon UK Marketplace,Individual School Budgets With Inclusion,26.4,Materials & Consumables,1819Q01_PC00211
Sandwell Metropolitan Borough Council,http://www.sandwell.gov.uk/info/200202/performance_and_spending/3233/government_procurement_cards,30-Apr-2018,Total Housing Revenue Account,AMZ Amazon.co.uk,Total Housing Revenue Account,-0.62,Materials & Consumables,1819Q01_PC00212
Sandwell Metropolitan Borough Council,http://www.sandwell.gov.uk/info/200202/performance_and_spending/3233/government_procurement_cards,30-Apr-2018,Total Housing Revenue Account,AMZ iventure,Total Housing Revenue Account,-4.37,Materials & Consumables,1819Q01_PC00213
Sandwell Metropolitan Borough Council,http://www.sandwell.gov.uk/info/200202/performance_and_spending/3233/government_procurement_cards,30-Apr-2018,Individual School Budgets With Inclusion,Amazon UK Marketplace,Individual School Budgets With Inclusion,12.12,Materials & Consumables,1819Q01_PC00214
Sandwell Metropolitan Borough Council,http://www.sandwell.gov.uk/info/200202/performance_and_spending/3233/government_procurement_cards,30-Apr-2018,Housing & Communities,B & Q 1276,Neighbourhoods,130.07,Grounds Maint&Improvements,1819Q01_PC00215
Sandwell Metropolitan Borough Council,http://www.sandwell.gov.uk/info/200202/performance_and_spending/3233/government_procurement_cards,30-Apr-2018,Housing & Communities,THE RANGE,Neighbourhoods,42.4,Materials & Consumables,1819Q01_PC00216
Sandwell Metropolitan Borough Council,http://www.sandwell.gov.uk/info/200202/performance_and_spending/3233/government_procurement_cards,30-Apr-2018,Resources (Inc SIU),Amazon EU,Assistant Chief Executive (Excl SIU),345.98,ICT,1819Q01_PC00217
Sandwell Metropolitan Borough Council,http://www.sandwell.gov.uk/info/200202/performance_and_spending/3233/government_procurement_cards,01-May-2018,Childrens Services,CHCKENGUARD,Childrens Services,99.03,Equipment & Furniture,1819Q01_PC00218
Sandwell Metropolitan Borough Council,http://www.sandwell.gov.uk/info/200202/performance_and_spending/3233/government_procurement_cards,01-May-2018,Housing & Communities,Amazon UK Marketplace,Neighbourhoods,3.3,Materials & Consumables,1819Q01_PC00219
Sandwell Metropolitan Borough Council,http://www.sandwell.gov.uk/info/200202/performance_and_spending/3233/government_procurement_cards,01-May-2018,Housing & Communities,Amazon UK Marketplace,Neighbourhoods,2.49,Materials & Consumables,1819Q01_PC00220
Sandwell Metropolitan Borough Council,http://www.sandwell.gov.uk/info/200202/performance_and_spending/3233/government_procurement_cards,01-May-2018,Housing & Communities,Amazon UK Marketplace,Neighbourhoods,78.79,Materials & Consumables,1819Q01_PC00221
Sandwell Metropolitan Borough Council,http://www.sandwell.gov.uk/info/200202/performance_and_spending/3233/government_procurement_cards,01-May-2018,Housing & Communities,Amazon UK Marketplace,Neighbourhoods,7.4,Materials & Consumables,1819Q01_PC00222
Sandwell Metropolitan Borough Council,http://www.sandwell.gov.uk/info/200202/performance_and_spending/3233/government_procurement_cards,01-May-2018,Housing & Communities,Amazon UK Marketplace,Neighbourhoods,17.68,Materials & Consumables,1819Q01_PC00223
Sandwell Metropolitan Borough Council,http://www.sandwell.gov.uk/info/200202/performance_and_spending/3233/government_procurement_cards,01-May-2018,Regeneration & Growth,Trainline,Regeneration And The Economy,-44,Public Transport,1819Q01_PC00224
Sandwell Metropolitan Borough Council,http://www.sandwell.gov.uk/info/200202/performance_and_spending/3233/government_procurement_cards,01-May-2018,Housing & Communities,WWW.PROTURF.CO.UK,Neighbourhoods,388.33,Materials & Consumables,1819Q01_PC00225
Sandwell Metropolitan Borough Council,http://www.sandwell.gov.uk/info/200202/performance_and_spending/3233/government_procurement_cards,01-May-2018,Housing & Communities,Amazon UK Marketplace,Neighbourhoods,38.32,Materials & Consumables,1819Q01_PC00226
Sandwell Metropolitan Borough Council,http://www.sandwell.gov.uk/info/200202/performance_and_spending/3233/government_procurement_cards,01-May-2018,Housing & Communities,Amazon UK Marketplace,Neighbourhoods,22.39,Materials & Consumables,1819Q01_PC00227
Sandwell Metropolitan Borough Council,http://www.sandwell.gov.uk/info/200202/performance_and_spending/3233/government_procurement_cards,01-May-2018,Resources (Inc SIU),Virgin Trains,Assistant Chief Executive (Excl SIU),179.58,Public Transport,1819Q01_PC00228
Sandwell Metropolitan Borough Council,http://www.sandwell.gov.uk/info/200202/performance_and_spending/3233/government_procurement_cards,02-May-2018,Childrens Services,WWW.MILLETS.CO.UK,Childrens Services,235.83,Materials & Consumables,1819Q01_PC00229
Sandwell Metropolitan Borough Council,http://www.sandwell.gov.uk/info/200202/performance_and_spending/3233/government_procurement_cards,02-May-2018,Resources (Inc SIU),NO 5 CHAMBERS LTD,Assistant Chief Executive (Excl SIU),75,Ind. Emp Exp-Staff Dev&Training,1819Q01_PC00230
Sandwell Metropolitan Borough Council,http://www.sandwell.gov.uk/info/200202/performance_and_spending/3233/government_procurement_cards,02-May-2018,Childrens Services,GWYNEDD DISPOSABLES,Childrens Services,81.3,Materials & Consumables,1819Q01_PC00231
Sandwell Metropolitan Borough Council,http://www.sandwell.gov.uk/info/200202/performance_and_spending/3233/government_procurement_cards,02-May-2018,Resources (Inc SIU),Amazon UK Marketplace,Assistant Chief Executive (Excl SIU),22.25,Printing Stationery&Gen Office,1819Q01_PC00232
Sandwell Metropolitan Borough Council,http://www.sandwell.gov.uk/info/200202/performance_and_spending/3233/government_procurement_cards,02-May-2018,Resources (Inc SIU),Amazon UK Marketplace,Assistant Chief Executive (Excl SIU),5.57,Printing Stationery&Gen Office,1819Q01_PC00233
Sandwell Metropolitan Borough Council,http://www.sandwell.gov.uk/info/200202/performance_and_spending/3233/government_procurement_cards,02-May-2018,Housing & Communities,Amazon UK Marketplace,Neighbourhoods,24.98,Equipment & Furniture,1819Q01_PC00234
Sandwell Metropolitan Borough Council,http://www.sandwell.gov.uk/info/200202/performance_and_spending/3233/government_procurement_cards,02-May-2018,Adult Social Care Health and Wellbeing - Total,SUK RETAIL LTD,Total Adult Social Care,36.22,Ind. Emp Exp-Staff Dev&Training,1819Q01_PC00235
Sandwell Metropolitan Borough Council,http://www.sandwell.gov.uk/info/200202/performance_and_spending/3233/government_procurement_cards,02-May-2018,Adult Social Care Health and Wellbeing - Total,TESCO STORES 2335,Total Adult Social Care,32.12,Ind. Emp Exp-Staff Dev&Training,1819Q01_PC00236
Sandwell Metropolitan Borough Council,http://www.sandwell.gov.uk/info/200202/performance_and_spending/3233/government_procurement_cards,02-May-2018,Resources (Inc SIU),BILL@TRAVEL.CLOUD,Assistant Chief Executive (Excl SIU),-58.5,Public Transport,1819Q01_PC00237
Sandwell Metropolitan Borough Council,http://www.sandwell.gov.uk/info/200202/performance_and_spending/3233/government_procurement_cards,02-May-2018,Resources (Inc SIU),BILL@TRAVEL.CLOUD,Assistant Chief Executive (Excl SIU),-2.7,Public Transport,1819Q01_PC00238
Sandwell Metropolitan Borough Council,http://www.sandwell.gov.uk/info/200202/performance_and_spending/3233/government_procurement_cards,02-May-2018,Resources (Inc SIU),SAINSBURYS SACAT0558,Assistant Chief Executive (Excl SIU),10.46,Printing Stationery&Gen Office,1819Q01_PC00239
Sandwell Metropolitan Borough Council,http://www.sandwell.gov.uk/info/200202/performance_and_spending/3233/government_procurement_cards,03-May-2018,Resources (Inc SIU),SOVEREIGN WEDDINGS,Assistant Chief Executive (Excl SIU),78.95,Printing Stationery&Gen Office,1819Q01_PC00240
Sandwell Metropolitan Borough Council,http://www.sandwell.gov.uk/info/200202/performance_and_spending/3233/government_procurement_cards,03-May-2018,Resources (Inc SIU),GOOGLE  CLOUD_01B69F-A,Assistant Chief Executive (Excl SIU),64.38,ICT,1819Q01_PC00241
Sandwell Metropolitan Borough Council,http://www.sandwell.gov.uk/info/200202/performance_and_spending/3233/government_procurement_cards,03-May-2018,Housing & Communities,Amazon UK Marketplace,Neighbourhoods,12.37,Materials & Consumables,1819Q01_PC00242
Sandwell Metropolitan Borough Council,http://www.sandwell.gov.uk/info/200202/performance_and_spending/3233/government_procurement_cards,03-May-2018,Housing & Communities,AQUAID FRANCHISING LTD,Neighbourhoods,18.75,Catering Provisions,1819Q01_PC00243
Sandwell Metropolitan Borough Council,http://www.sandwell.gov.uk/info/200202/performance_and_spending/3233/government_procurement_cards,03-May-2018,Housing & Communities,BILL@TRAVEL.CLOUD,Neighbourhoods,154,Public Transport,1819Q01_PC00244
Sandwell Metropolitan Borough Council,http://www.sandwell.gov.uk/info/200202/performance_and_spending/3233/government_procurement_cards,03-May-2018,Housing & Communities,BILL@TRAVEL.CLOUD,Neighbourhoods,12.7,Public Transport,1819Q01_PC00245
Sandwell Metropolitan Borough Council,http://www.sandwell.gov.uk/info/200202/performance_and_spending/3233/government_procurement_cards,03-May-2018,Childrens Services,Amazon UK Marketplace,Childrens Services,49.9,Materials & Consumables,1819Q01_PC00246
Sandwell Metropolitan Borough Council,http://www.sandwell.gov.uk/info/200202/performance_and_spending/3233/government_procurement_cards,03-May-2018,Childrens Services,Amazon UK Marketplace,Childrens Services,20.93,Catering Provisions,1819Q01_PC00247
Sandwell Metropolitan Borough Council,http://www.sandwell.gov.uk/info/200202/performance_and_spending/3233/government_procurement_cards,03-May-2018,Adult Social Care Health and Wellbeing - Total,WWW.ALZPRODUCTS.CO.UK,Total Adult Social Care,202.29,Printing Stationery&Gen Office,1819Q01_PC00248
Sandwell Metropolitan Borough Council,http://www.sandwell.gov.uk/info/200202/performance_and_spending/3233/government_procurement_cards,03-May-2018,Housing & Communities,POUNDSTRETCHER 328,Neighbourhoods,17.73,Materials & Consumables,1819Q01_PC00249
Sandwell Metropolitan Borough Council,http://www.sandwell.gov.uk/info/200202/performance_and_spending/3233/government_procurement_cards,03-May-2018,Resources (Inc SIU),TESCO STORES 2764,Assistant Chief Executive (Excl SIU),5.08,Printing Stationery&Gen Office,1819Q01_PC00250
Sandwell Metropolitan Borough Council,http://www.sandwell.gov.uk/info/200202/performance_and_spending/3233/government_procurement_cards,04-May-2018,Adult Social Care Health and Wellbeing - Total,BOCONLINE.CO.UK,Total Adult Social Care,71.82,Ind. Emp Exp-Staff Dev&Training,1819Q01_PC00251
Sandwell Metropolitan Borough Council,http://www.sandwell.gov.uk/info/200202/performance_and_spending/3233/government_procurement_cards,04-May-2018,Resources (Inc SIU),WWW.MONEYCLAIM.GOV,Assistant Chief Executive (Excl SIU),740.5,Rent Allowances Local Scheme,1819Q01_PC00252
Sandwell Metropolitan Borough Council,http://www.sandwell.gov.uk/info/200202/performance_and_spending/3233/government_procurement_cards,04-May-2018,Childrens Services,W M MORRISONS,Childrens Services,4.77,Catering Provisions,1819Q01_PC00253
Sandwell Metropolitan Borough Council,http://www.sandwell.gov.uk/info/200202/performance_and_spending/3233/government_procurement_cards,04-May-2018,Housing & Communities,POUNDLAND LTD 1729,Neighbourhoods,17.5,Materials & Consumables,1819Q01_PC00254
Sandwell Metropolitan Borough Council,http://www.sandwell.gov.uk/info/200202/performance_and_spending/3233/government_procurement_cards,04-May-2018,Housing & Communities,SCREWFIX DIRECT LT,Neighbourhoods,24.15,Materials & Consumables,1819Q01_PC00255
Sandwell Metropolitan Borough Council,http://www.sandwell.gov.uk/info/200202/performance_and_spending/3233/government_procurement_cards,04-May-2018,Resources (Inc SIU),WWW.DCBLTD.COM,Assistant Chief Executive (Excl SIU),66,Rent Allowances Local Scheme,1819Q01_PC00256
Sandwell Metropolitan Borough Council,http://www.sandwell.gov.uk/info/200202/performance_and_spending/3233/government_procurement_cards,04-May-2018,Resources (Inc SIU),WWW.DCBLTD.COM,Assistant Chief Executive (Excl SIU),66,Rent Allowances Local Scheme,1819Q01_PC00257
Sandwell Metropolitan Borough Council,http://www.sandwell.gov.uk/info/200202/performance_and_spending/3233/government_procurement_cards,04-May-2018,Resources (Inc SIU),WWW.MONEYCLAIM.GOV,Assistant Chief Executive (Excl SIU),105,Rent Allowances Local Scheme,1819Q01_PC00258
Sandwell Metropolitan Borough Council,http://www.sandwell.gov.uk/info/200202/performance_and_spending/3233/government_procurement_cards,04-May-2018,Resources (Inc SIU),Amazon UK Marketplace,Assistant Chief Executive (Excl SIU),5.57,Printing Stationery&Gen Office,1819Q01_PC00259
Sandwell Metropolitan Borough Council,http://www.sandwell.gov.uk/info/200202/performance_and_spending/3233/government_procurement_cards,04-May-2018,Resources (Inc SIU),Amazon EU,Assistant Chief Executive (Excl SIU),26.5,Printing Stationery&Gen Office,1819Q01_PC00260
Sandwell Metropolitan Borough Council,http://www.sandwell.gov.uk/info/200202/performance_and_spending/3233/government_procurement_cards,04-May-2018,Resources (Inc SIU),SUK RETAIL LTD,Assistant Chief Executive (Excl SIU),55.83,ICT,1819Q01_PC00261
Sandwell Metropolitan Borough Council,http://www.sandwell.gov.uk/info/200202/performance_and_spending/3233/government_procurement_cards,04-May-2018,Resources (Inc SIU),WWW.ARGOS.CO.UK,Assistant Chief Executive (Excl SIU),79.98,Equipment & Furniture,1819Q01_PC00262
Sandwell Metropolitan Borough Council,http://www.sandwell.gov.uk/info/200202/performance_and_spending/3233/government_procurement_cards,04-May-2018,Total Housing Revenue Account,B & Q 1276,Total Housing Revenue Account,30,Materials & Consumables,1819Q01_PC00263
Sandwell Metropolitan Borough Council,http://www.sandwell.gov.uk/info/200202/performance_and_spending/3233/government_procurement_cards,04-May-2018,Adult Social Care Health and Wellbeing - Total,BILL@TRAVEL.CLOUD,Public Health,12.7,Public Transport,1819Q01_PC00264
Sandwell Metropolitan Borough Council,http://www.sandwell.gov.uk/info/200202/performance_and_spending/3233/government_procurement_cards,04-May-2018,Housing & Communities,WWW.OFFICEMONSTER.,Neighbourhoods,27.65,Protective Clothing&Uniforms,1819Q01_PC00265
Sandwell Metropolitan Borough Council,http://www.sandwell.gov.uk/info/200202/performance_and_spending/3233/government_procurement_cards,04-May-2018,Adult Social Care Health and Wellbeing - Total,BILL@TRAVEL.CLOUD,Public Health,82.5,Public Transport,1819Q01_PC00266
Sandwell Metropolitan Borough Council,http://www.sandwell.gov.uk/info/200202/performance_and_spending/3233/government_procurement_cards,04-May-2018,Childrens Services,WWW.HEART-EDUCATIONAL.,Childrens Services,85.99,Materials & Consumables,1819Q01_PC00267
Sandwell Metropolitan Borough Council,http://www.sandwell.gov.uk/info/200202/performance_and_spending/3233/government_procurement_cards,04-May-2018,Childrens Services,HANDY DRY CLEANERS,Childrens Services,306.67,Laundry,1819Q01_PC00268
Sandwell Metropolitan Borough Council,http://www.sandwell.gov.uk/info/200202/performance_and_spending/3233/government_procurement_cards,04-May-2018,Regeneration & Growth,TIMPSON LTD,Regeneration And The Economy,17.5,R & M - Security,1819Q01_PC00269
Sandwell Metropolitan Borough Council,http://www.sandwell.gov.uk/info/200202/performance_and_spending/3233/government_procurement_cards,04-May-2018,Housing & Communities,Amazon UK Marketplace,Neighbourhoods,25.4,Equipment & Furniture,1819Q01_PC00270
Sandwell Metropolitan Borough Council,http://www.sandwell.gov.uk/info/200202/performance_and_spending/3233/government_procurement_cards,04-May-2018,Housing & Communities,Amazon UK Marketplace,Neighbourhoods,25.34,Materials & Consumables,1819Q01_PC00271
Sandwell Metropolitan Borough Council,http://www.sandwell.gov.uk/info/200202/performance_and_spending/3233/government_procurement_cards,04-May-2018,Resources (Inc SIU),Trainline,Assistant Chief Executive (Excl SIU),89.3,Public Transport,1819Q01_PC00272
Sandwell Metropolitan Borough Council,http://www.sandwell.gov.uk/info/200202/performance_and_spending/3233/government_procurement_cards,04-May-2018,Housing & Communities,PP CHARTLEY CHUCKS,Neighbourhoods,12.95,Materials & Consumables,1819Q01_PC00273
Sandwell Metropolitan Borough Council,http://www.sandwell.gov.uk/info/200202/performance_and_spending/3233/government_procurement_cards,04-May-2018,Housing & Communities,TESCO STORES 2335,Neighbourhoods,22.42,Materials & Consumables,1819Q01_PC00274
Sandwell Metropolitan Borough Council,http://www.sandwell.gov.uk/info/200202/performance_and_spending/3233/government_procurement_cards,04-May-2018,Housing & Communities,BCC REGISTER OFFIC,Neighbourhoods,14.87,Professional Services External,1819Q01_PC00275
Sandwell Metropolitan Borough Council,http://www.sandwell.gov.uk/info/200202/performance_and_spending/3233/government_procurement_cards,04-May-2018,Housing & Communities,FORCES SUPPORT CARTERS,Neighbourhoods,604.17,Equipment & Furniture,1819Q01_PC00276
Sandwell Metropolitan Borough Council,http://www.sandwell.gov.uk/info/200202/performance_and_spending/3233/government_procurement_cards,04-May-2018,Housing & Communities,Amazon EU,Neighbourhoods,63.8,Materials & Consumables,1819Q01_PC00277
Sandwell Metropolitan Borough Council,http://www.sandwell.gov.uk/info/200202/performance_and_spending/3233/government_procurement_cards,04-May-2018,Housing & Communities,Amazon UK Marketplace,Neighbourhoods,48.75,Materials & Consumables,1819Q01_PC00278
Sandwell Metropolitan Borough Council,http://www.sandwell.gov.uk/info/200202/performance_and_spending/3233/government_procurement_cards,07-May-2018,Childrens Services,MILLETS,Childrens Services,-233.33,Materials & Consumables,1819Q01_PC00279
Sandwell Metropolitan Borough Council,http://www.sandwell.gov.uk/info/200202/performance_and_spending/3233/government_procurement_cards,07-May-2018,Resources (Inc SIU),Amazon UK Marketplace,Assistant Chief Executive (Excl SIU),69.7,Rent Allowances Local Scheme,1819Q01_PC00280
Sandwell Metropolitan Borough Council,http://www.sandwell.gov.uk/info/200202/performance_and_spending/3233/government_procurement_cards,07-May-2018,Childrens Services,ASDA STORES LTD 5865,Childrens Services,8.21,Catering Provisions,1819Q01_PC00281
Sandwell Metropolitan Borough Council,http://www.sandwell.gov.uk/info/200202/performance_and_spending/3233/government_procurement_cards,07-May-2018,Adult Social Care Health and Wellbeing - Total,BILL@TRAVEL.CLOUD,Total Adult Social Care,83.9,Public Transport,1819Q01_PC00282
Sandwell Metropolitan Borough Council,http://www.sandwell.gov.uk/info/200202/performance_and_spending/3233/government_procurement_cards,07-May-2018,Regeneration & Growth,RISING BROOK CAR AND V,Regeneration And The Economy,-85.83,Vehicle Hiring Charges,1819Q01_PC00283
Sandwell Metropolitan Borough Council,http://www.sandwell.gov.uk/info/200202/performance_and_spending/3233/government_procurement_cards,07-May-2018,Regeneration & Growth,WWW.RISINGBROOK-CARAND,Regeneration And The Economy,85.83,Vehicle Hiring Charges,1819Q01_PC00284
Sandwell Metropolitan Borough Council,http://www.sandwell.gov.uk/info/200202/performance_and_spending/3233/government_procurement_cards,07-May-2018,Regeneration & Growth,RISING BROOK CAR AND V,Regeneration And The Economy,85.83,Vehicle Hiring Charges,1819Q01_PC00285
Sandwell Metropolitan Borough Council,http://www.sandwell.gov.uk/info/200202/performance_and_spending/3233/government_procurement_cards,07-May-2018,Housing & Communities,Amazon UK Marketplace,Neighbourhoods,23.2,Materials & Consumables,1819Q01_PC00286
Sandwell Metropolitan Borough Council,http://www.sandwell.gov.uk/info/200202/performance_and_spending/3233/government_procurement_cards,07-May-2018,Housing & Communities,HIGHFIELD HOUSE HO,Neighbourhoods,187.5,Operational Services,1819Q01_PC00287
Sandwell Metropolitan Borough Council,http://www.sandwell.gov.uk/info/200202/performance_and_spending/3233/government_procurement_cards,07-May-2018,Housing & Communities,Amazon UK Marketplace,Neighbourhoods,3.83,Materials & Consumables,1819Q01_PC00288
Sandwell Metropolitan Borough Council,http://www.sandwell.gov.uk/info/200202/performance_and_spending/3233/government_procurement_cards,07-May-2018,Childrens Services,Amazon EU,Childrens Services,20.42,Materials & Consumables,1819Q01_PC00289
Sandwell Metropolitan Borough Council,http://www.sandwell.gov.uk/info/200202/performance_and_spending/3233/government_procurement_cards,07-May-2018,Housing & Communities,Amazon UK Marketplace,Neighbourhoods,48.44,Equipment & Furniture,1819Q01_PC00290
Sandwell Metropolitan Borough Council,http://www.sandwell.gov.uk/info/200202/performance_and_spending/3233/government_procurement_cards,08-May-2018,Childrens Services,Amazon EU,Childrens Services,8.27,Materials & Consumables,1819Q01_PC00291
Sandwell Metropolitan Borough Council,http://www.sandwell.gov.uk/info/200202/performance_and_spending/3233/government_procurement_cards,08-May-2018,Childrens Services,Amazon EU,Childrens Services,19.16,Catering Equipment,1819Q01_PC00292
Sandwell Metropolitan Borough Council,http://www.sandwell.gov.uk/info/200202/performance_and_spending/3233/government_procurement_cards,08-May-2018,Housing & Communities,BESTWAY WHOLESALE,Neighbourhoods,312.05,Catering Provisions,1819Q01_PC00293
Sandwell Metropolitan Borough Council,http://www.sandwell.gov.uk/info/200202/performance_and_spending/3233/government_procurement_cards,09-May-2018,Resources (Inc SIU),Amazon UK Marketplace,Assistant Chief Executive (Excl SIU),10.98,Printing Stationery&Gen Office,1819Q01_PC00294
Sandwell Metropolitan Borough Council,http://www.sandwell.gov.uk/info/200202/performance_and_spending/3233/government_procurement_cards,09-May-2018,Resources (Inc SIU),POUNDLAND,Assistant Chief Executive (Excl SIU),4.17,Printing Stationery&Gen Office,1819Q01_PC00295
Sandwell Metropolitan Borough Council,http://www.sandwell.gov.uk/info/200202/performance_and_spending/3233/government_procurement_cards,09-May-2018,Resources (Inc SIU),T J MORRIS LTD,Assistant Chief Executive (Excl SIU),5.12,Printing Stationery&Gen Office,1819Q01_PC00296
Sandwell Metropolitan Borough Council,http://www.sandwell.gov.uk/info/200202/performance_and_spending/3233/government_procurement_cards,09-May-2018,Resources (Inc SIU),POUNDWORLD RETAIL,Assistant Chief Executive (Excl SIU),8.33,Printing Stationery&Gen Office,1819Q01_PC00297
Sandwell Metropolitan Borough Council,http://www.sandwell.gov.uk/info/200202/performance_and_spending/3233/government_procurement_cards,09-May-2018,Total Housing Revenue Account,Amazon UK Marketplace,Total Housing Revenue Account,33.59,Materials & Consumables,1819Q01_PC00298
Sandwell Metropolitan Borough Council,http://www.sandwell.gov.uk/info/200202/performance_and_spending/3233/government_procurement_cards,09-May-2018,Total Housing Revenue Account,Amazon UK Marketplace,Total Housing Revenue Account,54.97,Materials & Consumables,1819Q01_PC00299
Sandwell Metropolitan Borough Council,http://www.sandwell.gov.uk/info/200202/performance_and_spending/3233/government_procurement_cards,09-May-2018,Childrens Services,SCREWFIX DIRECT,Childrens Services,63.27,R& M - Building Maint&Imp.,1819Q01_PC00300
Sandwell Metropolitan Borough Council,http://www.sandwell.gov.uk/info/200202/performance_and_spending/3233/government_procurement_cards,09-May-2018,Childrens Services,SP   DAS LTD,Childrens Services,132.68,Materials & Consumables,1819Q01_PC00301
Sandwell Metropolitan Borough Council,http://www.sandwell.gov.uk/info/200202/performance_and_spending/3233/government_procurement_cards,09-May-2018,Regeneration & Growth,CRANKHALL LANE SER,Regeneration And The Economy,62.2,Fuel,1819Q01_PC00302
Sandwell Metropolitan Borough Council,http://www.sandwell.gov.uk/info/200202/performance_and_spending/3233/government_procurement_cards,09-May-2018,Housing & Communities,Amazon EU,Neighbourhoods,53.17,Materials & Consumables,1819Q01_PC00303
Sandwell Metropolitan Borough Council,http://www.sandwell.gov.uk/info/200202/performance_and_spending/3233/government_procurement_cards,09-May-2018,Housing & Communities,Amazon EU,Neighbourhoods,93.04,Materials & Consumables,1819Q01_PC00304
Sandwell Metropolitan Borough Council,http://www.sandwell.gov.uk/info/200202/performance_and_spending/3233/government_procurement_cards,09-May-2018,Housing & Communities,Amazon UK Marketplace,Neighbourhoods,34.95,Materials & Consumables,1819Q01_PC00305
Sandwell Metropolitan Borough Council,http://www.sandwell.gov.uk/info/200202/performance_and_spending/3233/government_procurement_cards,09-May-2018,Resources (Inc SIU),WEST COAST TRAINS,Assistant Chief Executive (Excl SIU),8.5,Public Transport,1819Q01_PC00306
Sandwell Metropolitan Borough Council,http://www.sandwell.gov.uk/info/200202/performance_and_spending/3233/government_procurement_cards,10-May-2018,Housing & Communities,PREMIER INN,Neighbourhoods,352.5,Operational Services,1819Q01_PC00307
Sandwell Metropolitan Borough Council,http://www.sandwell.gov.uk/info/200202/performance_and_spending/3233/government_procurement_cards,10-May-2018,Childrens Services,Cross Country Trains,Childrens Services,116.9,Public Transport,1819Q01_PC00308
Sandwell Metropolitan Borough Council,http://www.sandwell.gov.uk/info/200202/performance_and_spending/3233/government_procurement_cards,10-May-2018,Childrens Services,WWW.MERLINARCHERY.CO.U,Childrens Services,9.19,Materials & Consumables,1819Q01_PC00309
Sandwell Metropolitan Borough Council,http://www.sandwell.gov.uk/info/200202/performance_and_spending/3233/government_procurement_cards,10-May-2018,Adult Social Care Health and Wellbeing - Total,MOONROCK INSURANCE,Total Adult Social Care,40.18,Ind. Emp Exp-Insurance,1819Q01_PC00310
Sandwell Metropolitan Borough Council,http://www.sandwell.gov.uk/info/200202/performance_and_spending/3233/government_procurement_cards,10-May-2018,Adult Social Care Health and Wellbeing - Total,Trainline,Total Adult Social Care,71.5,Public Transport,1819Q01_PC00311
Sandwell Metropolitan Borough Council,http://www.sandwell.gov.uk/info/200202/performance_and_spending/3233/government_procurement_cards,10-May-2018,Childrens Services,Amazon UK Marketplace,Childrens Services,49.98,Materials & Consumables,1819Q01_PC00312
Sandwell Metropolitan Borough Council,http://www.sandwell.gov.uk/info/200202/performance_and_spending/3233/government_procurement_cards,10-May-2018,Housing & Communities,HIGHFIELD HOUSE HO,Neighbourhoods,258.33,Operational Services,1819Q01_PC00313
Sandwell Metropolitan Borough Council,http://www.sandwell.gov.uk/info/200202/performance_and_spending/3233/government_procurement_cards,10-May-2018,Housing & Communities,Amazon UK Marketplace,Neighbourhoods,12.89,Materials & Consumables,1819Q01_PC00314
Sandwell Metropolitan Borough Council,http://www.sandwell.gov.uk/info/200202/performance_and_spending/3233/government_procurement_cards,10-May-2018,Housing & Communities,Trainline,Neighbourhoods,59.4,Public Transport,1819Q01_PC00315
Sandwell Metropolitan Borough Council,http://www.sandwell.gov.uk/info/200202/performance_and_spending/3233/government_procurement_cards,10-May-2018,Resources (Inc SIU),WWW.CIPFA.ORG.UK/PFMCO,Assistant Chief Executive (Excl SIU),95,Ind. Emp Exp-Staff Dev&Training,1819Q01_PC00316
Sandwell Metropolitan Borough Council,http://www.sandwell.gov.uk/info/200202/performance_and_spending/3233/government_procurement_cards,10-May-2018,Housing & Communities,Trainline,Neighbourhoods,127.9,Public Transport,1819Q01_PC00317
Sandwell Metropolitan Borough Council,http://www.sandwell.gov.uk/info/200202/performance_and_spending/3233/government_procurement_cards,10-May-2018,Housing & Communities,Amazon UK Marketplace,Neighbourhoods,20.53,Catering Equipment,1819Q01_PC00318
Sandwell Metropolitan Borough Council,http://www.sandwell.gov.uk/info/200202/performance_and_spending/3233/government_procurement_cards,11-May-2018,Housing & Communities,PREMIER INN,Neighbourhoods,312.5,Operational Services,1819Q01_PC00319
Sandwell Metropolitan Borough Council,http://www.sandwell.gov.uk/info/200202/performance_and_spending/3233/government_procurement_cards,11-May-2018,Adult Social Care Health and Wellbeing - Total,Amazon UK Marketplace,Total Adult Social Care,2.58,Printing Stationery&Gen Office,1819Q01_PC00320
Sandwell Metropolitan Borough Council,http://www.sandwell.gov.uk/info/200202/performance_and_spending/3233/government_procurement_cards,11-May-2018,Regeneration & Growth,Amazon UK Marketplace,Regeneration And The Economy,14.48,Printing Stationery&Gen Office,1819Q01_PC00321
Sandwell Metropolitan Borough Council,http://www.sandwell.gov.uk/info/200202/performance_and_spending/3233/government_procurement_cards,11-May-2018,Childrens Services,WWW.QUICKSARCHERY.CO.U,Childrens Services,95.53,Materials & Consumables,1819Q01_PC00322
Sandwell Metropolitan Borough Council,http://www.sandwell.gov.uk/info/200202/performance_and_spending/3233/government_procurement_cards,11-May-2018,Childrens Services,ALDI 109 772,Childrens Services,2.15,Catering Provisions,1819Q01_PC00323
Sandwell Metropolitan Borough Council,http://www.sandwell.gov.uk/info/200202/performance_and_spending/3233/government_procurement_cards,11-May-2018,Resources (Inc SIU),WWW.ONLINELAPTOPBATTER,Assistant Chief Executive (Excl SIU),22.9,ICT,1819Q01_PC00324
Sandwell Metropolitan Borough Council,http://www.sandwell.gov.uk/info/200202/performance_and_spending/3233/government_procurement_cards,11-May-2018,Individual School Budgets With Inclusion,123 REG R/T,Individual School Budgets With Inclusion,29.99,ICT,1819Q01_PC00325
Sandwell Metropolitan Borough Council,http://www.sandwell.gov.uk/info/200202/performance_and_spending/3233/government_procurement_cards,11-May-2018,Childrens Services,SCREWFIX DIRECT,Childrens Services,25.36,R& M - Building Maint&Imp.,1819Q01_PC00326
Sandwell Metropolitan Borough Council,http://www.sandwell.gov.uk/info/200202/performance_and_spending/3233/government_procurement_cards,11-May-2018,Housing & Communities,Trainline,Neighbourhoods,62.5,Public Transport,1819Q01_PC00327
Sandwell Metropolitan Borough Council,http://www.sandwell.gov.uk/info/200202/performance_and_spending/3233/government_procurement_cards,11-May-2018,Housing & Communities,REDWINGS LODGE,Neighbourhoods,41.62,Operational Services,1819Q01_PC00328
Sandwell Metropolitan Borough Council,http://www.sandwell.gov.uk/info/200202/performance_and_spending/3233/government_procurement_cards,11-May-2018,Corporate Management,SANDWELL & DUDLEY STN,Corporate Management,14.7,Public Transport,1819Q01_PC00329
Sandwell Metropolitan Borough Council,http://www.sandwell.gov.uk/info/200202/performance_and_spending/3233/government_procurement_cards,11-May-2018,Total Housing Revenue Account,Amazon UK Marketplace,Total Housing Revenue Account,12.29,Equipment & Furniture,1819Q01_PC00330
Sandwell Metropolitan Borough Council,http://www.sandwell.gov.uk/info/200202/performance_and_spending/3233/government_procurement_cards,14-May-2018,Total Housing Revenue Account,CAPITA GAS,Total Housing Revenue Account,10,Professional Services External,1819Q01_PC00331
Sandwell Metropolitan Borough Council,http://www.sandwell.gov.uk/info/200202/performance_and_spending/3233/government_procurement_cards,14-May-2018,Adult Social Care Health and Wellbeing - Total,Trainline,Total Adult Social Care,244.5,Public Transport,1819Q01_PC00332
Sandwell Metropolitan Borough Council,http://www.sandwell.gov.uk/info/200202/performance_and_spending/3233/government_procurement_cards,14-May-2018,Adult Social Care Health and Wellbeing - Total,PARK INN BIRMINGHAM W,Total Adult Social Care,465,Hire of Facilities,1819Q01_PC00333
Sandwell Metropolitan Borough Council,http://www.sandwell.gov.uk/info/200202/performance_and_spending/3233/government_procurement_cards,14-May-2018,Adult Social Care Health and Wellbeing - Total,TRAVELODGE,Total Adult Social Care,60.25,Conference Expenses,1819Q01_PC00334
Sandwell Metropolitan Borough Council,http://www.sandwell.gov.uk/info/200202/performance_and_spending/3233/government_procurement_cards,14-May-2018,Childrens Services,Trainline,Childrens Services,42,Public Transport,1819Q01_PC00335
Sandwell Metropolitan Borough Council,http://www.sandwell.gov.uk/info/200202/performance_and_spending/3233/government_procurement_cards,14-May-2018,Childrens Services,Trainline,Childrens Services,81.1,Public Transport,1819Q01_PC00336
Sandwell Metropolitan Borough Council,http://www.sandwell.gov.uk/info/200202/performance_and_spending/3233/government_procurement_cards,14-May-2018,Housing & Communities,Trainline,Neighbourhoods,58.4,Public Transport,1819Q01_PC00337
Sandwell Metropolitan Borough Council,http://www.sandwell.gov.uk/info/200202/performance_and_spending/3233/government_procurement_cards,14-May-2018,Housing & Communities,CILIP,Neighbourhoods,50,Ind. Emp Exp-Staff Dev&Training,1819Q01_PC00338
Sandwell Metropolitan Borough Council,http://www.sandwell.gov.uk/info/200202/performance_and_spending/3233/government_procurement_cards,14-May-2018,Childrens Services,MAG EVENTS,Childrens Services,144,Ind. Emp Exp-Staff Dev&Training,1819Q01_PC00339
Sandwell Metropolitan Borough Council,http://www.sandwell.gov.uk/info/200202/performance_and_spending/3233/government_procurement_cards,14-May-2018,Adult Social Care Health and Wellbeing - Total,ASDA STORES,Total Adult Social Care,53.44,Ind. Emp Exp-Staff Dev&Training,1819Q01_PC00340
Sandwell Metropolitan Borough Council,http://www.sandwell.gov.uk/info/200202/performance_and_spending/3233/government_procurement_cards,14-May-2018,Housing & Communities,Amazon UK Marketplace,Neighbourhoods,1.88,Materials & Consumables,1819Q01_PC00341
Sandwell Metropolitan Borough Council,http://www.sandwell.gov.uk/info/200202/performance_and_spending/3233/government_procurement_cards,14-May-2018,Resources (Inc SIU),Amazon UK Marketplace,Assistant Chief Executive (Excl SIU),44.95,Printing Stationery&Gen Office,1819Q01_PC00342
Sandwell Metropolitan Borough Council,http://www.sandwell.gov.uk/info/200202/performance_and_spending/3233/government_procurement_cards,14-May-2018,Corporate Management,Amazon UK Marketplace,Corporate Management,6.79,Printing Stationery&Gen Office,1819Q01_PC00343
Sandwell Metropolitan Borough Council,http://www.sandwell.gov.uk/info/200202/performance_and_spending/3233/government_procurement_cards,15-May-2018,Resources (Inc SIU),TFL ROAD CHARGE,Assistant Chief Executive (Excl SIU),11.5,Car Parking,1819Q01_PC00344
Sandwell Metropolitan Borough Council,http://www.sandwell.gov.uk/info/200202/performance_and_spending/3233/government_procurement_cards,15-May-2018,Housing & Communities,Amazon UK Marketplace,Neighbourhoods,15.65,Materials & Consumables,1819Q01_PC00345
Sandwell Metropolitan Borough Council,http://www.sandwell.gov.uk/info/200202/performance_and_spending/3233/government_procurement_cards,15-May-2018,Total Housing Revenue Account,Cross Country Trains,Total Housing Revenue Account,57.2,Public Transport,1819Q01_PC00346
Sandwell Metropolitan Borough Council,http://www.sandwell.gov.uk/info/200202/performance_and_spending/3233/government_procurement_cards,15-May-2018,Total Housing Revenue Account,THE POST OFFICE,Total Housing Revenue Account,220,Licences,1819Q01_PC00347
Sandwell Metropolitan Borough Council,http://www.sandwell.gov.uk/info/200202/performance_and_spending/3233/government_procurement_cards,15-May-2018,Total Housing Revenue Account,THE POST OFFICE,Total Housing Revenue Account,220,Licences,1819Q01_PC00348
Sandwell Metropolitan Borough Council,http://www.sandwell.gov.uk/info/200202/performance_and_spending/3233/government_procurement_cards,15-May-2018,Childrens Services,TESCO STORES 2335,Childrens Services,4.29,Materials & Consumables,1819Q01_PC00349
Sandwell Metropolitan Borough Council,http://www.sandwell.gov.uk/info/200202/performance_and_spending/3233/government_procurement_cards,15-May-2018,Childrens Services,TESCO STORES 2335,Childrens Services,3.58,Materials & Consumables,1819Q01_PC00350
Sandwell Metropolitan Borough Council,http://www.sandwell.gov.uk/info/200202/performance_and_spending/3233/government_procurement_cards,15-May-2018,Resources (Inc SIU),TESCO STORES 2335,Assistant Chief Executive (Excl SIU),9.1,Printing Stationery&Gen Office,1819Q01_PC00351
Sandwell Metropolitan Borough Council,http://www.sandwell.gov.uk/info/200202/performance_and_spending/3233/government_procurement_cards,15-May-2018,Housing & Communities,Amazon UK Marketplace,Neighbourhoods,33.32,Telephones,1819Q01_PC00352
Sandwell Metropolitan Borough Council,http://www.sandwell.gov.uk/info/200202/performance_and_spending/3233/government_procurement_cards,15-May-2018,Housing & Communities,Amazon UK Marketplace,Neighbourhoods,10.39,Materials & Consumables,1819Q01_PC00353
Sandwell Metropolitan Borough Council,http://www.sandwell.gov.uk/info/200202/performance_and_spending/3233/government_procurement_cards,16-May-2018,Housing & Communities,PREMIER INN,Neighbourhoods,72.92,Operational Services,1819Q01_PC00354
Sandwell Metropolitan Borough Council,http://www.sandwell.gov.uk/info/200202/performance_and_spending/3233/government_procurement_cards,16-May-2018,Childrens Services,W M MORRISONS,Childrens Services,18.93,Catering Provisions,1819Q01_PC00355
Sandwell Metropolitan Borough Council,http://www.sandwell.gov.uk/info/200202/performance_and_spending/3233/government_procurement_cards,16-May-2018,Adult Social Care Health and Wellbeing - Total,BILL@TRAVEL.CLOUD,Total Adult Social Care,8.7,Public Transport,1819Q01_PC00356
Sandwell Metropolitan Borough Council,http://www.sandwell.gov.uk/info/200202/performance_and_spending/3233/government_procurement_cards,16-May-2018,Total Housing Revenue Account,STAFFORDSHIRE BLDS SUP,Total Housing Revenue Account,36.75,Materials & Consumables,1819Q01_PC00357
Sandwell Metropolitan Borough Council,http://www.sandwell.gov.uk/info/200202/performance_and_spending/3233/government_procurement_cards,16-May-2018,Childrens Services,PAYPAL  OPENINGDOOR,Childrens Services,195,Ind. Emp Exp-Staff Dev&Training,1819Q01_PC00358
Sandwell Metropolitan Borough Council,http://www.sandwell.gov.uk/info/200202/performance_and_spending/3233/government_procurement_cards,16-May-2018,Resources (Inc SIU),MAJESTIC WINE,Assistant Chief Executive (Excl SIU),358.57,Catering Provisions,1819Q01_PC00359
Sandwell Metropolitan Borough Council,http://www.sandwell.gov.uk/info/200202/performance_and_spending/3233/government_procurement_cards,16-May-2018,Resources (Inc SIU),MAJESTIC WINE,Assistant Chief Executive (Excl SIU),457.5,Catering Provisions,1819Q01_PC00360
Sandwell Metropolitan Borough Council,http://www.sandwell.gov.uk/info/200202/performance_and_spending/3233/government_procurement_cards,16-May-2018,Resources (Inc SIU),WWW.TRAIN-AID.CO.UK,Assistant Chief Executive (Excl SIU),810,Professional Services External,1819Q01_PC00361
Sandwell Metropolitan Borough Council,http://www.sandwell.gov.uk/info/200202/performance_and_spending/3233/government_procurement_cards,16-May-2018,Total Housing Revenue Account,SANDWELL & DUDLEY STN,Total Housing Revenue Account,64,Employee Expenses,1819Q01_PC00362
Sandwell Metropolitan Borough Council,http://www.sandwell.gov.uk/info/200202/performance_and_spending/3233/government_procurement_cards,16-May-2018,Housing & Communities,HIGHFIELD HOUSE HO,Neighbourhoods,29.17,Operational Services,1819Q01_PC00363
Sandwell Metropolitan Borough Council,http://www.sandwell.gov.uk/info/200202/performance_and_spending/3233/government_procurement_cards,16-May-2018,Housing & Communities,PRESERVATION EQUIP,Neighbourhoods,667.69,Equipment & Furniture,1819Q01_PC00364
Sandwell Metropolitan Borough Council,http://www.sandwell.gov.uk/info/200202/performance_and_spending/3233/government_procurement_cards,16-May-2018,Resources (Inc SIU),HMCOURTS-SERVICE.G,Assistant Chief Executive (Excl SIU),237,Council Tax,1819Q01_PC00365
Sandwell Metropolitan Borough Council,http://www.sandwell.gov.uk/info/200202/performance_and_spending/3233/government_procurement_cards,16-May-2018,Adult Social Care Health and Wellbeing - Total,C.N. UNWIN LTD,Total Adult Social Care,86.67,Fixtures & Fittings,1819Q01_PC00366
Sandwell Metropolitan Borough Council,http://www.sandwell.gov.uk/info/200202/performance_and_spending/3233/government_procurement_cards,16-May-2018,Childrens Services,Spotify P05FB0BBBB,Childrens Services,8.32,Subscriptions,1819Q01_PC00367
Sandwell Metropolitan Borough Council,http://www.sandwell.gov.uk/info/200202/performance_and_spending/3233/government_procurement_cards,17-May-2018,Housing & Communities,EDGBASTON PALACE,Neighbourhoods,641.67,Operational Services,1819Q01_PC00368
Sandwell Metropolitan Borough Council,http://www.sandwell.gov.uk/info/200202/performance_and_spending/3233/government_procurement_cards,17-May-2018,Housing & Communities,PREMIER INN,Neighbourhoods,373.75,Operational Services,1819Q01_PC00369
Sandwell Metropolitan Borough Council,http://www.sandwell.gov.uk/info/200202/performance_and_spending/3233/government_procurement_cards,17-May-2018,Regeneration & Growth,WWW.CSKILLS.ORG,Regeneration And The Economy,25,Printing Stationery&Gen Office,1819Q01_PC00370
Sandwell Metropolitan Borough Council,http://www.sandwell.gov.uk/info/200202/performance_and_spending/3233/government_procurement_cards,17-May-2018,Childrens Services,Trainline,Childrens Services,65.4,Public Transport,1819Q01_PC00371
Sandwell Metropolitan Borough Council,http://www.sandwell.gov.uk/info/200202/performance_and_spending/3233/government_procurement_cards,17-May-2018,Individual School Budgets With Inclusion,123 REG R/T,Individual School Budgets With Inclusion,-29.99,ICT,1819Q01_PC00372
Sandwell Metropolitan Borough Council,http://www.sandwell.gov.uk/info/200202/performance_and_spending/3233/government_procurement_cards,17-May-2018,Housing & Communities,HIGHFIELD HOUSE HO,Neighbourhoods,75,Operational Services,1819Q01_PC00373
Sandwell Metropolitan Borough Council,http://www.sandwell.gov.uk/info/200202/performance_and_spending/3233/government_procurement_cards,17-May-2018,Resources (Inc SIU),Amazon UK Marketplace,Assistant Chief Executive (Excl SIU),60.48,ICT,1819Q01_PC00374
Sandwell Metropolitan Borough Council,http://www.sandwell.gov.uk/info/200202/performance_and_spending/3233/government_procurement_cards,17-May-2018,Childrens Services,Trainline,Childrens Services,-63.9,Public Transport,1819Q01_PC00375
Sandwell Metropolitan Borough Council,http://www.sandwell.gov.uk/info/200202/performance_and_spending/3233/government_procurement_cards,17-May-2018,Childrens Services,SCREWFIX DIRECT,Childrens Services,41.62,R& M - Building Maint&Imp.,1819Q01_PC00376
Sandwell Metropolitan Borough Council,http://www.sandwell.gov.uk/info/200202/performance_and_spending/3233/government_procurement_cards,17-May-2018,Childrens Services,Trainline,Childrens Services,65.4,Public Transport,1819Q01_PC00377
Sandwell Metropolitan Borough Council,http://www.sandwell.gov.uk/info/200202/performance_and_spending/3233/government_procurement_cards,17-May-2018,Housing & Communities,B & Q 1276,Neighbourhoods,234.7,Materials & Consumables,1819Q01_PC00378
Sandwell Metropolitan Borough Council,http://www.sandwell.gov.uk/info/200202/performance_and_spending/3233/government_procurement_cards,17-May-2018,Housing & Communities,HIGHFIELD HOUSE HO,Neighbourhoods,416.67,Operational Services,1819Q01_PC00379
Sandwell Metropolitan Borough Council,http://www.sandwell.gov.uk/info/200202/performance_and_spending/3233/government_procurement_cards,18-May-2018,Housing & Communities,PREMIER INN,Neighbourhoods,67.5,Operational Services,1819Q01_PC00380
Sandwell Metropolitan Borough Council,http://www.sandwell.gov.uk/info/200202/performance_and_spending/3233/government_procurement_cards,18-May-2018,Regeneration & Growth,CIVIC TRUST AWARDS COM,Regeneration And The Economy,600,Subscriptions,1819Q01_PC00381
Sandwell Metropolitan Borough Council,http://www.sandwell.gov.uk/info/200202/performance_and_spending/3233/government_procurement_cards,18-May-2018,Adult Social Care Health and Wellbeing - Total,PARK INN BIRMINGHAM W,Total Adult Social Care,120,Catering Provisions,1819Q01_PC00382
Sandwell Metropolitan Borough Council,http://www.sandwell.gov.uk/info/200202/performance_and_spending/3233/government_procurement_cards,18-May-2018,Childrens Services,COTSWOLD OUTDOOR,Childrens Services,450,Materials & Consumables,1819Q01_PC00383
Sandwell Metropolitan Borough Council,http://www.sandwell.gov.uk/info/200202/performance_and_spending/3233/government_procurement_cards,18-May-2018,Childrens Services,ASDA STORES LTD 5865,Childrens Services,7.48,Catering Provisions,1819Q01_PC00384
Sandwell Metropolitan Borough Council,http://www.sandwell.gov.uk/info/200202/performance_and_spending/3233/government_procurement_cards,18-May-2018,Childrens Services,ASDA STORES LTD 5865,Childrens Services,6.87,Catering Provisions,1819Q01_PC00385
Sandwell Metropolitan Borough Council,http://www.sandwell.gov.uk/info/200202/performance_and_spending/3233/government_procurement_cards,18-May-2018,Regeneration & Growth,SMS CONNECTIONS,Regeneration And The Economy,2553.58,Professional Services External,1819Q01_PC00386
Sandwell Metropolitan Borough Council,http://www.sandwell.gov.uk/info/200202/performance_and_spending/3233/government_procurement_cards,18-May-2018,Resources (Inc SIU),Amazon UK Marketplace,Assistant Chief Executive (Excl SIU),40.97,ICT,1819Q01_PC00387
Sandwell Metropolitan Borough Council,http://www.sandwell.gov.uk/info/200202/performance_and_spending/3233/government_procurement_cards,18-May-2018,Resources (Inc SIU),Amazon UK Marketplace,Assistant Chief Executive (Excl SIU),79.07,ICT,1819Q01_PC00388
Sandwell Metropolitan Borough Council,http://www.sandwell.gov.uk/info/200202/performance_and_spending/3233/government_procurement_cards,18-May-2018,Housing & Communities,Amazon UK Marketplace,Neighbourhoods,18.72,ICT,1819Q01_PC00389
Sandwell Metropolitan Borough Council,http://www.sandwell.gov.uk/info/200202/performance_and_spending/3233/government_procurement_cards,18-May-2018,Housing & Communities,Amazon UK Marketplace,Neighbourhoods,62.12,Materials & Consumables,1819Q01_PC00390
Sandwell Metropolitan Borough Council,http://www.sandwell.gov.uk/info/200202/performance_and_spending/3233/government_procurement_cards,18-May-2018,Housing & Communities,Trainline,Neighbourhoods,87.2,Public Transport,1819Q01_PC00391
Sandwell Metropolitan Borough Council,http://www.sandwell.gov.uk/info/200202/performance_and_spending/3233/government_procurement_cards,18-May-2018,Corporate Management,WWW.PARTYDELIGHTS.CO.U,Corporate Management,-12.5,Civic Events,1819Q01_PC00392
Sandwell Metropolitan Borough Council,http://www.sandwell.gov.uk/info/200202/performance_and_spending/3233/government_procurement_cards,18-May-2018,Corporate Management,WWW.PARTYDELIGHTS.CO.U,Corporate Management,154.23,Civic Events,1819Q01_PC00393
Sandwell Metropolitan Borough Council,http://www.sandwell.gov.uk/info/200202/performance_and_spending/3233/government_procurement_cards,18-May-2018,Resources (Inc SIU),Amazon UK Marketplace,Assistant Chief Executive (Excl SIU),1.71,Materials & Consumables,1819Q01_PC00394
Sandwell Metropolitan Borough Council,http://www.sandwell.gov.uk/info/200202/performance_and_spending/3233/government_procurement_cards,18-May-2018,Resources (Inc SIU),Trainline,Assistant Chief Executive (Excl SIU),10.15,Public Transport,1819Q01_PC00395
Sandwell Metropolitan Borough Council,http://www.sandwell.gov.uk/info/200202/performance_and_spending/3233/government_procurement_cards,21-May-2018,Total Housing Revenue Account,WWW.TEACHERBOARDS.CO.U,Total Housing Revenue Account,17.38,Printing Stationery&Gen Office,1819Q01_PC00396
Sandwell Metropolitan Borough Council,http://www.sandwell.gov.uk/info/200202/performance_and_spending/3233/government_procurement_cards,21-May-2018,Childrens Services,SP   NCT RESOURCES,Childrens Services,14.85,Printing Stationery&Gen Office,1819Q01_PC00397
Sandwell Metropolitan Borough Council,http://www.sandwell.gov.uk/info/200202/performance_and_spending/3233/government_procurement_cards,21-May-2018,Housing & Communities,Amazon UK Marketplace,Neighbourhoods,7.98,Materials & Consumables,1819Q01_PC00398
Sandwell Metropolitan Borough Council,http://www.sandwell.gov.uk/info/200202/performance_and_spending/3233/government_procurement_cards,21-May-2018,Housing & Communities,Amazon EU,Neighbourhoods,13.48,Materials & Consumables,1819Q01_PC00399
Sandwell Metropolitan Borough Council,http://www.sandwell.gov.uk/info/200202/performance_and_spending/3233/government_procurement_cards,21-May-2018,Childrens Services,TIMPSON LTD,Childrens Services,20,Materials & Consumables,1819Q01_PC00400
Sandwell Metropolitan Borough Council,http://www.sandwell.gov.uk/info/200202/performance_and_spending/3233/government_procurement_cards,21-May-2018,Housing & Communities,Amazon UK Marketplace,Neighbourhoods,37.42,Materials & Consumables,1819Q01_PC00401
Sandwell Metropolitan Borough Council,http://www.sandwell.gov.uk/info/200202/performance_and_spending/3233/government_procurement_cards,21-May-2018,Housing & Communities,Amazon UK Marketplace,Neighbourhoods,59.99,Materials & Consumables,1819Q01_PC00402
Sandwell Metropolitan Borough Council,http://www.sandwell.gov.uk/info/200202/performance_and_spending/3233/government_procurement_cards,21-May-2018,Housing & Communities,Amazon UK Marketplace,Neighbourhoods,69.02,ICT,1819Q01_PC00403
Sandwell Metropolitan Borough Council,http://www.sandwell.gov.uk/info/200202/performance_and_spending/3233/government_procurement_cards,21-May-2018,Housing & Communities,Trainline,Neighbourhoods,161.5,Public Transport,1819Q01_PC00404
Sandwell Metropolitan Borough Council,http://www.sandwell.gov.uk/info/200202/performance_and_spending/3233/government_procurement_cards,21-May-2018,Adult Social Care Health and Wellbeing - Total,BILL@TRAVEL.CLOUD,Total Adult Social Care,12.7,Public Transport,1819Q01_PC00405
Sandwell Metropolitan Borough Council,http://www.sandwell.gov.uk/info/200202/performance_and_spending/3233/government_procurement_cards,21-May-2018,Adult Social Care Health and Wellbeing - Total,BILL@TRAVEL.CLOUD,Total Adult Social Care,156,Public Transport,1819Q01_PC00406
Sandwell Metropolitan Borough Council,http://www.sandwell.gov.uk/info/200202/performance_and_spending/3233/government_procurement_cards,21-May-2018,Resources (Inc SIU),Virgin Trains,Assistant Chief Executive (Excl SIU),50.58,Public Transport,1819Q01_PC00407
Sandwell Metropolitan Borough Council,http://www.sandwell.gov.uk/info/200202/performance_and_spending/3233/government_procurement_cards,21-May-2018,Resources (Inc SIU),Amazon Prime,Assistant Chief Executive (Excl SIU),6.66,ICT,1819Q01_PC00408
Sandwell Metropolitan Borough Council,http://www.sandwell.gov.uk/info/200202/performance_and_spending/3233/government_procurement_cards,21-May-2018,Childrens Services,Amazon EU,Childrens Services,20.32,Materials & Consumables,1819Q01_PC00409
Sandwell Metropolitan Borough Council,http://www.sandwell.gov.uk/info/200202/performance_and_spending/3233/government_procurement_cards,22-May-2018,Housing & Communities,DVSA MOT COMP 2,Neighbourhoods,0,Licences&Test Fees,1819Q01_PC00410
Sandwell Metropolitan Borough Council,http://www.sandwell.gov.uk/info/200202/performance_and_spending/3233/government_procurement_cards,22-May-2018,Adult Social Care Health and Wellbeing - Total,Trainline,Total Adult Social Care,-233,Public Transport,1819Q01_PC00411
Sandwell Metropolitan Borough Council,http://www.sandwell.gov.uk/info/200202/performance_and_spending/3233/government_procurement_cards,22-May-2018,Housing & Communities,EDGBASTON PALACE,Neighbourhoods,366.67,Operational Services,1819Q01_PC00412
Sandwell Metropolitan Borough Council,http://www.sandwell.gov.uk/info/200202/performance_and_spending/3233/government_procurement_cards,22-May-2018,Childrens Services,Amazon UK Marketplace,Childrens Services,15.98,Equipment & Furniture,1819Q01_PC00413
Sandwell Metropolitan Borough Council,http://www.sandwell.gov.uk/info/200202/performance_and_spending/3233/government_procurement_cards,22-May-2018,Childrens Services,ASDA GROCERIES ONLINE,Childrens Services,-6.16,Catering Provisions,1819Q01_PC00414
Sandwell Metropolitan Borough Council,http://www.sandwell.gov.uk/info/200202/performance_and_spending/3233/government_procurement_cards,22-May-2018,Childrens Services,ASDA GROCERIES ONLINE,Childrens Services,87.67,Catering Provisions,1819Q01_PC00415
Sandwell Metropolitan Borough Council,http://www.sandwell.gov.uk/info/200202/performance_and_spending/3233/government_procurement_cards,22-May-2018,Resources (Inc SIU),Amazon Prime,Assistant Chief Executive (Excl SIU),-6.66,ICT,1819Q01_PC00416
Sandwell Metropolitan Borough Council,http://www.sandwell.gov.uk/info/200202/performance_and_spending/3233/government_procurement_cards,23-May-2018,Corporate Management,WWW.JOHNLEWIS.COM,Corporate Management,14.95,Printing Stationery&Gen Office,1819Q01_PC00417
Sandwell Metropolitan Borough Council,http://www.sandwell.gov.uk/info/200202/performance_and_spending/3233/government_procurement_cards,23-May-2018,Housing & Communities,PREMIER INN,Neighbourhoods,294.58,Operational Services,1819Q01_PC00418
Sandwell Metropolitan Borough Council,http://www.sandwell.gov.uk/info/200202/performance_and_spending/3233/government_procurement_cards,23-May-2018,Adult Social Care Health and Wellbeing - Total,Trainline,Total Adult Social Care,105,Public Transport,1819Q01_PC00419
Sandwell Metropolitan Borough Council,http://www.sandwell.gov.uk/info/200202/performance_and_spending/3233/government_procurement_cards,23-May-2018,Adult Social Care Health and Wellbeing - Total,MOONROCK INSURANCE,Total Adult Social Care,417.46,Insurance,1819Q01_PC00420
Sandwell Metropolitan Borough Council,http://www.sandwell.gov.uk/info/200202/performance_and_spending/3233/government_procurement_cards,23-May-2018,Childrens Services,ASDA STORES LTD 5865,Childrens Services,6.89,Catering Provisions,1819Q01_PC00421
Sandwell Metropolitan Borough Council,http://www.sandwell.gov.uk/info/200202/performance_and_spending/3233/government_procurement_cards,23-May-2018,Childrens Services,ASDA STORES LTD 5865,Childrens Services,5.83,Catering Provisions,1819Q01_PC00422
Sandwell Metropolitan Borough Council,http://www.sandwell.gov.uk/info/200202/performance_and_spending/3233/government_procurement_cards,23-May-2018,Resources (Inc SIU),SAINSBURYS 0558,Assistant Chief Executive (Excl SIU),16.3,Catering Provisions,1819Q01_PC00423
Sandwell Metropolitan Borough Council,http://www.sandwell.gov.uk/info/200202/performance_and_spending/3233/government_procurement_cards,23-May-2018,Housing & Communities,C I L I P,Neighbourhoods,25,Ind. Emp Exp-Staff Dev&Training,1819Q01_PC00424
Sandwell Metropolitan Borough Council,http://www.sandwell.gov.uk/info/200202/performance_and_spending/3233/government_procurement_cards,23-May-2018,Resources (Inc SIU),ASDA SUPERSTORE,Assistant Chief Executive (Excl SIU),63.7,Catering Provisions,1819Q01_PC00425
Sandwell Metropolitan Borough Council,http://www.sandwell.gov.uk/info/200202/performance_and_spending/3233/government_procurement_cards,23-May-2018,Resources (Inc SIU),Trainline,Assistant Chief Executive (Excl SIU),245.5,Public Transport,1819Q01_PC00426
Sandwell Metropolitan Borough Council,http://www.sandwell.gov.uk/info/200202/performance_and_spending/3233/government_procurement_cards,23-May-2018,Resources (Inc SIU),Trainline,Assistant Chief Executive (Excl SIU),285.5,Public Transport,1819Q01_PC00427
Sandwell Metropolitan Borough Council,http://www.sandwell.gov.uk/info/200202/performance_and_spending/3233/government_procurement_cards,23-May-2018,Resources (Inc SIU),Amazon EU,Assistant Chief Executive (Excl SIU),22.23,ICT,1819Q01_PC00428
Sandwell Metropolitan Borough Council,http://www.sandwell.gov.uk/info/200202/performance_and_spending/3233/government_procurement_cards,23-May-2018,Total Housing Revenue Account,AMAZON SVCS EU-UK AMAZ,Total Housing Revenue Account,39.44,Materials & Consumables,1819Q01_PC00429
Sandwell Metropolitan Borough Council,http://www.sandwell.gov.uk/info/200202/performance_and_spending/3233/government_procurement_cards,23-May-2018,Corporate Management,EXECUTIVE ONLINE RETAI,Corporate Management,9.75,Printing Stationery&Gen Office,1819Q01_PC00430
Sandwell Metropolitan Borough Council,http://www.sandwell.gov.uk/info/200202/performance_and_spending/3233/government_procurement_cards,23-May-2018,Resources (Inc SIU),Trainline,Assistant Chief Executive (Excl SIU),41.5,Public Transport,1819Q01_PC00431
Sandwell Metropolitan Borough Council,http://www.sandwell.gov.uk/info/200202/performance_and_spending/3233/government_procurement_cards,23-May-2018,Resources (Inc SIU),Virgin Trains,Assistant Chief Executive (Excl SIU),65.5,Public Transport,1819Q01_PC00432
Sandwell Metropolitan Borough Council,http://www.sandwell.gov.uk/info/200202/performance_and_spending/3233/government_procurement_cards,23-May-2018,Resources (Inc SIU),HMCOURTS-SERVICE.G,Assistant Chief Executive (Excl SIU),423,NNDR,1819Q01_PC00433
Sandwell Metropolitan Borough Council,http://www.sandwell.gov.uk/info/200202/performance_and_spending/3233/government_procurement_cards,23-May-2018,Resources (Inc SIU),HMCOURTS-SERVICE.G,Assistant Chief Executive (Excl SIU),3393,Council Tax,1819Q01_PC00434
Sandwell Metropolitan Borough Council,http://www.sandwell.gov.uk/info/200202/performance_and_spending/3233/government_procurement_cards,23-May-2018,Housing & Communities,ANDY LOOS LTD,Neighbourhoods,738.8,Hygiene Services,1819Q01_PC00435
Sandwell Metropolitan Borough Council,http://www.sandwell.gov.uk/info/200202/performance_and_spending/3233/government_procurement_cards,23-May-2018,Childrens Services,Amazon UK Marketplace,Childrens Services,8.32,Telephones,1819Q01_PC00436
Sandwell Metropolitan Borough Council,http://www.sandwell.gov.uk/info/200202/performance_and_spending/3233/government_procurement_cards,24-May-2018,Total Housing Revenue Account,ARGOS BLACKHEATH,Total Housing Revenue Account,23.32,ICT,1819Q01_PC00437
Sandwell Metropolitan Borough Council,http://www.sandwell.gov.uk/info/200202/performance_and_spending/3233/government_procurement_cards,24-May-2018,Resources (Inc SIU),WWW.AVANTAUK.COM,Assistant Chief Executive (Excl SIU),19.59,Equipment & Furniture,1819Q01_PC00438
Sandwell Metropolitan Borough Council,http://www.sandwell.gov.uk/info/200202/performance_and_spending/3233/government_procurement_cards,24-May-2018,Resources (Inc SIU),Amazon UK Marketplace,Assistant Chief Executive (Excl SIU),3.74,"Postages, Carriage & Courier Services",1819Q01_PC00439
Sandwell Metropolitan Borough Council,http://www.sandwell.gov.uk/info/200202/performance_and_spending/3233/government_procurement_cards,24-May-2018,Resources (Inc SIU),Amazon UK Marketplace,Assistant Chief Executive (Excl SIU),9.16,Equipment & Furniture,1819Q01_PC00440
Sandwell Metropolitan Borough Council,http://www.sandwell.gov.uk/info/200202/performance_and_spending/3233/government_procurement_cards,24-May-2018,Adult Social Care Health and Wellbeing - Total,BILL@TRAVEL.CLOUD,Public Health,12.7,Public Transport,1819Q01_PC00441
Sandwell Metropolitan Borough Council,http://www.sandwell.gov.uk/info/200202/performance_and_spending/3233/government_procurement_cards,24-May-2018,Adult Social Care Health and Wellbeing - Total,BILL@TRAVEL.CLOUD,Public Health,157,Public Transport,1819Q01_PC00442
Sandwell Metropolitan Borough Council,http://www.sandwell.gov.uk/info/200202/performance_and_spending/3233/government_procurement_cards,24-May-2018,Total Housing Revenue Account,MIDLAND JETTING SERVIC,Total Housing Revenue Account,38.8,Materials & Consumables,1819Q01_PC00443
Sandwell Metropolitan Borough Council,http://www.sandwell.gov.uk/info/200202/performance_and_spending/3233/government_procurement_cards,24-May-2018,Total Housing Revenue Account,MIDLAND JETTING SERVIC,Total Housing Revenue Account,65,Materials & Consumables,1819Q01_PC00444
Sandwell Metropolitan Borough Council,http://www.sandwell.gov.uk/info/200202/performance_and_spending/3233/government_procurement_cards,24-May-2018,Resources (Inc SIU),Trainline,Assistant Chief Executive (Excl SIU),12.35,Public Transport,1819Q01_PC00445
Sandwell Metropolitan Borough Council,http://www.sandwell.gov.uk/info/200202/performance_and_spending/3233/government_procurement_cards,25-May-2018,Total Housing Revenue Account,PREMIER INN,Total Housing Revenue Account,185,Conference Expenses,1819Q01_PC00446
Sandwell Metropolitan Borough Council,http://www.sandwell.gov.uk/info/200202/performance_and_spending/3233/government_procurement_cards,25-May-2018,Regeneration & Growth,Amazon UK Marketplace,Regeneration And The Economy,21.85,Printing Stationery&Gen Office,1819Q01_PC00447
Sandwell Metropolitan Borough Council,http://www.sandwell.gov.uk/info/200202/performance_and_spending/3233/government_procurement_cards,25-May-2018,Individual School Budgets With Inclusion,SAINSBURYS LOC4471,Individual School Budgets With Inclusion,6.05,Catering Provisions,1819Q01_PC00448
Sandwell Metropolitan Borough Council,http://www.sandwell.gov.uk/info/200202/performance_and_spending/3233/government_procurement_cards,25-May-2018,Regeneration & Growth,TIMPSON LTD,Regeneration And The Economy,10,R & M - Security,1819Q01_PC00449
Sandwell Metropolitan Borough Council,http://www.sandwell.gov.uk/info/200202/performance_and_spending/3233/government_procurement_cards,25-May-2018,Individual School Budgets With Inclusion,SANDWELL & DUDLEY STN,Individual School Budgets With Inclusion,29,Public Transport,1819Q01_PC00450
Sandwell Metropolitan Borough Council,http://www.sandwell.gov.uk/info/200202/performance_and_spending/3233/government_procurement_cards,25-May-2018,Total Housing Revenue Account,ARCO LTD,Total Housing Revenue Account,25.89,Materials & Consumables,1819Q01_PC00451
Sandwell Metropolitan Borough Council,http://www.sandwell.gov.uk/info/200202/performance_and_spending/3233/government_procurement_cards,25-May-2018,Total Housing Revenue Account,UNICO COMPONENTS,Total Housing Revenue Account,239.45,Materials & Consumables,1819Q01_PC00452
Sandwell Metropolitan Borough Council,http://www.sandwell.gov.uk/info/200202/performance_and_spending/3233/government_procurement_cards,25-May-2018,Resources (Inc SIU),Amazon UK Marketplace,Assistant Chief Executive (Excl SIU),5.95,ICT,1819Q01_PC00453
Sandwell Metropolitan Borough Council,http://www.sandwell.gov.uk/info/200202/performance_and_spending/3233/government_procurement_cards,25-May-2018,Housing & Communities,ARGOS LTD,Neighbourhoods,24.99,Fixtures & Fittings,1819Q01_PC00454
Sandwell Metropolitan Borough Council,http://www.sandwell.gov.uk/info/200202/performance_and_spending/3233/government_procurement_cards,25-May-2018,Total Housing Revenue Account,BILL@TRAVEL.CLOUD,Total Housing Revenue Account,50.8,Public Transport,1819Q01_PC00455
Sandwell Metropolitan Borough Council,http://www.sandwell.gov.uk/info/200202/performance_and_spending/3233/government_procurement_cards,25-May-2018,Total Housing Revenue Account,BILL@TRAVEL.CLOUD,Total Housing Revenue Account,440,Public Transport,1819Q01_PC00456
Sandwell Metropolitan Borough Council,http://www.sandwell.gov.uk/info/200202/performance_and_spending/3233/government_procurement_cards,25-May-2018,Housing & Communities,Amazon UK Marketplace,Neighbourhoods,24.54,Materials & Consumables,1819Q01_PC00457
Sandwell Metropolitan Borough Council,http://www.sandwell.gov.uk/info/200202/performance_and_spending/3233/government_procurement_cards,25-May-2018,Housing & Communities,COLWICH FILLING ST,Neighbourhoods,25.07,Fuel,1819Q01_PC00458
Sandwell Metropolitan Borough Council,http://www.sandwell.gov.uk/info/200202/performance_and_spending/3233/government_procurement_cards,25-May-2018,Housing & Communities,PP CHARTLEY CHUCKS,Neighbourhoods,46.46,Materials & Consumables,1819Q01_PC00459
Sandwell Metropolitan Borough Council,http://www.sandwell.gov.uk/info/200202/performance_and_spending/3233/government_procurement_cards,25-May-2018,Housing & Communities,PP CHARTLEY CHUCKS,Neighbourhoods,47.5,Materials & Consumables,1819Q01_PC00460
Sandwell Metropolitan Borough Council,http://www.sandwell.gov.uk/info/200202/performance_and_spending/3233/government_procurement_cards,25-May-2018,Housing & Communities,STOURBRIDGE VOLKSWAGEN,Neighbourhoods,7.3,Fire Service Workshops,1819Q01_PC00461
Sandwell Metropolitan Borough Council,http://www.sandwell.gov.uk/info/200202/performance_and_spending/3233/government_procurement_cards,28-May-2018,Housing & Communities,FORCES SUPPORT CARTERS,Neighbourhoods,29.17,Equipment & Furniture,1819Q01_PC00462
Sandwell Metropolitan Borough Council,http://www.sandwell.gov.uk/info/200202/performance_and_spending/3233/government_procurement_cards,28-May-2018,Total Housing Revenue Account,CERTSURE LLP,Total Housing Revenue Account,400,Materials & Consumables,1819Q01_PC00463
Sandwell Metropolitan Borough Council,http://www.sandwell.gov.uk/info/200202/performance_and_spending/3233/government_procurement_cards,28-May-2018,Childrens Services,THISTLE EXPRESS,Childrens Services,55.96,Ind. Emp Exp-Staff Dev&Training,1819Q01_PC00464
Sandwell Metropolitan Borough Council,http://www.sandwell.gov.uk/info/200202/performance_and_spending/3233/government_procurement_cards,28-May-2018,Childrens Services,HANDY DRY CLEANERS,Childrens Services,79.17,Laundry,1819Q01_PC00465
Sandwell Metropolitan Borough Council,http://www.sandwell.gov.uk/info/200202/performance_and_spending/3233/government_procurement_cards,28-May-2018,Childrens Services,HANDY DRY CLEANERS,Childrens Services,147.5,Laundry,1819Q01_PC00466
Sandwell Metropolitan Borough Council,http://www.sandwell.gov.uk/info/200202/performance_and_spending/3233/government_procurement_cards,28-May-2018,Childrens Services,HANDY DRY CLEANERS,Childrens Services,157.5,Laundry,1819Q01_PC00467
Sandwell Metropolitan Borough Council,http://www.sandwell.gov.uk/info/200202/performance_and_spending/3233/government_procurement_cards,28-May-2018,Resources (Inc SIU),ASDA SUPERSTORE,Assistant Chief Executive (Excl SIU),8.96,ICT,1819Q01_PC00468
Sandwell Metropolitan Borough Council,http://www.sandwell.gov.uk/info/200202/performance_and_spending/3233/government_procurement_cards,28-May-2018,Resources (Inc SIU),WWW.DONTPANICPROJEC LT,Assistant Chief Executive (Excl SIU),555,Conference Expenses,1819Q01_PC00469
Sandwell Metropolitan Borough Council,http://www.sandwell.gov.uk/info/200202/performance_and_spending/3233/government_procurement_cards,28-May-2018,Housing & Communities,TESCO STORES 2335,Neighbourhoods,24.67,Materials & Consumables,1819Q01_PC00470
Sandwell Metropolitan Borough Council,http://www.sandwell.gov.uk/info/200202/performance_and_spending/3233/government_procurement_cards,28-May-2018,Resources (Inc SIU),PITMAN TRAINING BIRMIN,Assistant Chief Executive (Excl SIU),199,Ind. Emp Exp-Staff Dev&Training,1819Q01_PC00471
Sandwell Metropolitan Borough Council,http://www.sandwell.gov.uk/info/200202/performance_and_spending/3233/government_procurement_cards,28-May-2018,Resources (Inc SIU),Amazon UK Marketplace,Assistant Chief Executive (Excl SIU),17.72,Printing Stationery&Gen Office,1819Q01_PC00472
Sandwell Metropolitan Borough Council,http://www.sandwell.gov.uk/info/200202/performance_and_spending/3233/government_procurement_cards,28-May-2018,Housing & Communities,NAJRAN DIRECT,Neighbourhoods,77.5,R& M - Building Maint&Imp.,1819Q01_PC00473
Sandwell Metropolitan Borough Council,http://www.sandwell.gov.uk/info/200202/performance_and_spending/3233/government_procurement_cards,28-May-2018,Housing & Communities,Amazon UK Marketplace,Neighbourhoods,145.8,Equipment & Furniture,1819Q01_PC00474
Sandwell Metropolitan Borough Council,http://www.sandwell.gov.uk/info/200202/performance_and_spending/3233/government_procurement_cards,29-May-2018,Total Housing Revenue Account,Amazon EU,Total Housing Revenue Account,55.83,Materials & Consumables,1819Q01_PC00475
Sandwell Metropolitan Borough Council,http://www.sandwell.gov.uk/info/200202/performance_and_spending/3233/government_procurement_cards,29-May-2018,Childrens Services,Amazon EU,Childrens Services,33.48,Materials & Consumables,1819Q01_PC00476
Sandwell Metropolitan Borough Council,http://www.sandwell.gov.uk/info/200202/performance_and_spending/3233/government_procurement_cards,29-May-2018,Housing & Communities,AMAZON SVCS EU-UK AMAZ,Neighbourhoods,145.38,Materials & Consumables,1819Q01_PC00477
Sandwell Metropolitan Borough Council,http://www.sandwell.gov.uk/info/200202/performance_and_spending/3233/government_procurement_cards,29-May-2018,Housing & Communities,THE RANGE,Neighbourhoods,14.07,Fixtures & Fittings,1819Q01_PC00478
Sandwell Metropolitan Borough Council,http://www.sandwell.gov.uk/info/200202/performance_and_spending/3233/government_procurement_cards,29-May-2018,Housing & Communities,PETS AT HOME,Neighbourhoods,16.67,Rent Allowances Local Scheme,1819Q01_PC00479
Sandwell Metropolitan Borough Council,http://www.sandwell.gov.uk/info/200202/performance_and_spending/3233/government_procurement_cards,29-May-2018,Housing & Communities,PETS AT HOME,Neighbourhoods,37.5,Rent Allowances Local Scheme,1819Q01_PC00480
Sandwell Metropolitan Borough Council,http://www.sandwell.gov.uk/info/200202/performance_and_spending/3233/government_procurement_cards,29-May-2018,Housing & Communities,PETS AT HOME,Neighbourhoods,37.5,Rent Allowances Local Scheme,1819Q01_PC00481
Sandwell Metropolitan Borough Council,http://www.sandwell.gov.uk/info/200202/performance_and_spending/3233/government_procurement_cards,29-May-2018,Housing & Communities,Amazon UK Marketplace,Neighbourhoods,24.16,Printing Stationery&Gen Office,1819Q01_PC00482
Sandwell Metropolitan Borough Council,http://www.sandwell.gov.uk/info/200202/performance_and_spending/3233/government_procurement_cards,29-May-2018,Housing & Communities,POUNDLAND,Neighbourhoods,2.5,Materials & Consumables,1819Q01_PC00483
Sandwell Metropolitan Borough Council,http://www.sandwell.gov.uk/info/200202/performance_and_spending/3233/government_procurement_cards,30-May-2018,Housing & Communities,ASIAN VOICE AND GUJARA,Neighbourhoods,36.5,Materials & Consumables,1819Q01_PC00484
Sandwell Metropolitan Borough Council,http://www.sandwell.gov.uk/info/200202/performance_and_spending/3233/government_procurement_cards,30-May-2018,Childrens Services,Hotel on Booking.com,Childrens Services,58.33,Ind. Emp Exp-Staff Dev&Training,1819Q01_PC00485
Sandwell Metropolitan Borough Council,http://www.sandwell.gov.uk/info/200202/performance_and_spending/3233/government_procurement_cards,30-May-2018,Housing & Communities,AMAZON SVCS EU-UK AMAZ,Neighbourhoods,269.88,Equipment & Furniture,1819Q01_PC00486
Sandwell Metropolitan Borough Council,http://www.sandwell.gov.uk/info/200202/performance_and_spending/3233/government_procurement_cards,30-May-2018,Resources (Inc SIU),MAJESTIC WINE,Assistant Chief Executive (Excl SIU),-549,Catering Provisions,1819Q01_PC00487
Sandwell Metropolitan Borough Council,http://www.sandwell.gov.uk/info/200202/performance_and_spending/3233/government_procurement_cards,30-May-2018,Resources (Inc SIU),STATIONERYU,Assistant Chief Executive (Excl SIU),23.59,Printing Stationery&Gen Office,1819Q01_PC00488
Sandwell Metropolitan Borough Council,http://www.sandwell.gov.uk/info/200202/performance_and_spending/3233/government_procurement_cards,30-May-2018,Resources (Inc SIU),WILLIAM WHEAT AND SON,Assistant Chief Executive (Excl SIU),8.33,Grounds Maint&Improvements,1819Q01_PC00489
Sandwell Metropolitan Borough Council,http://www.sandwell.gov.uk/info/200202/performance_and_spending/3233/government_procurement_cards,30-May-2018,Housing & Communities,HIGHFIELD HOUSE HO,Neighbourhoods,657.5,Operational Services,1819Q01_PC00490
Sandwell Metropolitan Borough Council,http://www.sandwell.gov.uk/info/200202/performance_and_spending/3233/government_procurement_cards,30-May-2018,Housing & Communities,Amazon UK Marketplace,Neighbourhoods,24.07,Printing Stationery&Gen Office,1819Q01_PC00491
Sandwell Metropolitan Borough Council,http://www.sandwell.gov.uk/info/200202/performance_and_spending/3233/government_procurement_cards,31-May-2018,Resources (Inc SIU),PUBSHOPCATA,Assistant Chief Executive (Excl SIU),134.95,Equipment & Furniture,1819Q01_PC00492
Sandwell Metropolitan Borough Council,http://www.sandwell.gov.uk/info/200202/performance_and_spending/3233/government_procurement_cards,31-May-2018,Housing & Communities,Amazon EU,Neighbourhoods,8.31,Materials & Consumables,1819Q01_PC00493
Sandwell Metropolitan Borough Council,http://www.sandwell.gov.uk/info/200202/performance_and_spending/3233/government_procurement_cards,31-May-2018,Regeneration & Growth,TIMPSON LTD,Regeneration And The Economy,17.08,R & M - Security,1819Q01_PC00494
Sandwell Metropolitan Borough Council,http://www.sandwell.gov.uk/info/200202/performance_and_spending/3233/government_procurement_cards,31-May-2018,Housing & Communities,Amazon EU,Neighbourhoods,19.15,Materials & Consumables,1819Q01_PC00495
Sandwell Metropolitan Borough Council,http://www.sandwell.gov.uk/info/200202/performance_and_spending/3233/government_procurement_cards,31-May-2018,Regeneration & Growth,WWW.SDFIREALARMS.CO.UK,Regeneration And The Economy,67.5,Operational Services,1819Q01_PC00496
Sandwell Metropolitan Borough Council,http://www.sandwell.gov.uk/info/200202/performance_and_spending/3233/government_procurement_cards,31-May-2018,Resources (Inc SIU),WWW.IRRV.ORG.UK,Assistant Chief Executive (Excl SIU),300,Conference Expenses,1819Q01_PC00497
Sandwell Metropolitan Borough Council,http://www.sandwell.gov.uk/info/200202/performance_and_spending/3233/government_procurement_cards,31-May-2018,Resources (Inc SIU),Trainline,Assistant Chief Executive (Excl SIU),18.12,ICT,1819Q01_PC00498
Sandwell Metropolitan Borough Council,http://www.sandwell.gov.uk/info/200202/performance_and_spending/3233/government_procurement_cards,31-May-2018,Housing & Communities,JONATHANS IN THE PARK,Neighbourhoods,32,Catering Provisions,1819Q01_PC00499
Sandwell Metropolitan Borough Council,http://www.sandwell.gov.uk/info/200202/performance_and_spending/3233/government_procurement_cards,31-May-2018,Resources (Inc SIU),AMAZON SVCS EU-UK AMAZ,Assistant Chief Executive (Excl SIU),29.95,ICT,1819Q01_PC00500
Sandwell Metropolitan Borough Council,http://www.sandwell.gov.uk/info/200202/performance_and_spending/3233/government_procurement_cards,31-May-2018,Resources (Inc SIU),MAJESTIC WINE,Assistant Chief Executive (Excl SIU),-34.95,Catering Provisions,1819Q01_PC00501
Sandwell Metropolitan Borough Council,http://www.sandwell.gov.uk/info/200202/performance_and_spending/3233/government_procurement_cards,31-May-2018,Resources (Inc SIU),HOMEBASE LTD 085,Assistant Chief Executive (Excl SIU),13.59,Printing Stationery&Gen Office,1819Q01_PC00502
Sandwell Metropolitan Borough Council,http://www.sandwell.gov.uk/info/200202/performance_and_spending/3233/government_procurement_cards,31-May-2018,Resources (Inc SIU),Amazon UK Marketplace,Assistant Chief Executive (Excl SIU),29.34,Printing Stationery&Gen Office,1819Q01_PC00503
Sandwell Metropolitan Borough Council,http://www.sandwell.gov.uk/info/200202/performance_and_spending/3233/government_procurement_cards,31-May-2018,Resources (Inc SIU),Amazon UK Marketplace,Assistant Chief Executive (Excl SIU),29.35,Printing Stationery&Gen Office,1819Q01_PC00504
Sandwell Metropolitan Borough Council,http://www.sandwell.gov.uk/info/200202/performance_and_spending/3233/government_procurement_cards,31-May-2018,Housing & Communities,FORCES SUPPORT CARTERS,Neighbourhoods,200,Equipment & Furniture,1819Q01_PC00505
Sandwell Metropolitan Borough Council,http://www.sandwell.gov.uk/info/200202/performance_and_spending/3233/government_procurement_cards,31-May-2018,Resources (Inc SIU),AMAZON SVCS EU-UK AMAZ,Assistant Chief Executive (Excl SIU),36.22,ICT,1819Q01_PC00506
Sandwell Metropolitan Borough Council,http://www.sandwell.gov.uk/info/200202/performance_and_spending/3233/government_procurement_cards,31-May-2018,Housing & Communities,Amazon UK Marketplace,Neighbourhoods,4.75,Materials & Consumables,1819Q01_PC00507
Sandwell Metropolitan Borough Council,http://www.sandwell.gov.uk/info/200202/performance_and_spending/3233/government_procurement_cards,01-Jun-2018,Resources (Inc SIU),AMAZON SVCS EU-UK AMAZ,Assistant Chief Executive (Excl SIU),49.58,ICT,1819Q01_PC00508
Sandwell Metropolitan Borough Council,http://www.sandwell.gov.uk/info/200202/performance_and_spending/3233/government_procurement_cards,01-Jun-2018,Regeneration & Growth,TIMPSON LTD,Regeneration And The Economy,6.67,R & M - Security,1819Q01_PC00509
Sandwell Metropolitan Borough Council,http://www.sandwell.gov.uk/info/200202/performance_and_spending/3233/government_procurement_cards,01-Jun-2018,Regeneration & Growth,TIMPSON LTD,Regeneration And The Economy,14.17,R & M - Security,1819Q01_PC00510
Sandwell Metropolitan Borough Council,http://www.sandwell.gov.uk/info/200202/performance_and_spending/3233/government_procurement_cards,01-Jun-2018,Adult Social Care Health and Wellbeing - Total,BILL@TRAVEL.CLOUD,Total Adult Social Care,38.1,Public Transport,1819Q01_PC00511
Sandwell Metropolitan Borough Council,http://www.sandwell.gov.uk/info/200202/performance_and_spending/3233/government_procurement_cards,01-Jun-2018,Childrens Services,Hotel on Booking.com,Childrens Services,50,Ind. Emp Exp-Staff Dev&Training,1819Q01_PC00512
Sandwell Metropolitan Borough Council,http://www.sandwell.gov.uk/info/200202/performance_and_spending/3233/government_procurement_cards,01-Jun-2018,Childrens Services,Virgin Trains,Childrens Services,148.3,Public Transport,1819Q01_PC00513
Sandwell Metropolitan Borough Council,http://www.sandwell.gov.uk/info/200202/performance_and_spending/3233/government_procurement_cards,01-Jun-2018,Adult Social Care Health and Wellbeing - Total,BILL@TRAVEL.CLOUD,Total Adult Social Care,160,Public Transport,1819Q01_PC00514
Sandwell Metropolitan Borough Council,http://www.sandwell.gov.uk/info/200202/performance_and_spending/3233/government_procurement_cards,01-Jun-2018,Adult Social Care Health and Wellbeing - Total,BILL@TRAVEL.CLOUD,Total Adult Social Care,306,Printing Stationery&Gen Office,1819Q01_PC00515
Sandwell Metropolitan Borough Council,http://www.sandwell.gov.uk/info/200202/performance_and_spending/3233/government_procurement_cards,01-Jun-2018,Resources (Inc SIU),CATERERS SUPPLIES LTD,Assistant Chief Executive (Excl SIU),14,Printing Stationery&Gen Office,1819Q01_PC00516
Sandwell Metropolitan Borough Council,http://www.sandwell.gov.uk/info/200202/performance_and_spending/3233/government_procurement_cards,01-Jun-2018,Resources (Inc SIU),Trainline,Assistant Chief Executive (Excl SIU),-40,Public Transport,1819Q01_PC00517
Sandwell Metropolitan Borough Council,http://www.sandwell.gov.uk/info/200202/performance_and_spending/3233/government_procurement_cards,04-Jun-2018,Resources (Inc SIU),ALDI 42 772,Assistant Chief Executive (Excl SIU),0.1,Catering Provisions,1819Q01_PC00518
Sandwell Metropolitan Borough Council,http://www.sandwell.gov.uk/info/200202/performance_and_spending/3233/government_procurement_cards,04-Jun-2018,Resources (Inc SIU),DIGITAL JUICE,Assistant Chief Executive (Excl SIU),77.49,ICT,1819Q01_PC00519
Sandwell Metropolitan Borough Council,http://www.sandwell.gov.uk/info/200202/performance_and_spending/3233/government_procurement_cards,04-Jun-2018,Resources (Inc SIU),ALDI 42 772,Assistant Chief Executive (Excl SIU),12.08,Catering Provisions,1819Q01_PC00520
Sandwell Metropolitan Borough Council,http://www.sandwell.gov.uk/info/200202/performance_and_spending/3233/government_procurement_cards,04-Jun-2018,Housing & Communities,ARGOS LTD,Neighbourhoods,19.99,R& M - Building Maint&Imp.,1819Q01_PC00521
Sandwell Metropolitan Borough Council,http://www.sandwell.gov.uk/info/200202/performance_and_spending/3233/government_procurement_cards,04-Jun-2018,Resources (Inc SIU),Amazon UK Marketplace,Assistant Chief Executive (Excl SIU),10.82,ICT,1819Q01_PC00522
Sandwell Metropolitan Borough Council,http://www.sandwell.gov.uk/info/200202/performance_and_spending/3233/government_procurement_cards,04-Jun-2018,Adult Social Care Health and Wellbeing - Total,BURNTWOOD COURT HOTEL,Total Adult Social Care,49.58,Conference Expenses,1819Q01_PC00523
Sandwell Metropolitan Borough Council,http://www.sandwell.gov.uk/info/200202/performance_and_spending/3233/government_procurement_cards,04-Jun-2018,Childrens Services,Cross Country Trains,Childrens Services,68.1,Public Transport,1819Q01_PC00524
Sandwell Metropolitan Borough Council,http://www.sandwell.gov.uk/info/200202/performance_and_spending/3233/government_procurement_cards,04-Jun-2018,Resources (Inc SIU),GOOGLE  CLOUD_01B69F-A,Assistant Chief Executive (Excl SIU),71.15,ICT,1819Q01_PC00525
Sandwell Metropolitan Borough Council,http://www.sandwell.gov.uk/info/200202/performance_and_spending/3233/government_procurement_cards,04-Jun-2018,Housing & Communities,Amazon UK Marketplace,Neighbourhoods,31.3,Materials & Consumables,1819Q01_PC00526
Sandwell Metropolitan Borough Council,http://www.sandwell.gov.uk/info/200202/performance_and_spending/3233/government_procurement_cards,04-Jun-2018,Individual School Budgets With Inclusion,AVANGATE BITDEFENDER.C,Individual School Budgets With Inclusion,29.16,ICT,1819Q01_PC00527
Sandwell Metropolitan Borough Council,http://www.sandwell.gov.uk/info/200202/performance_and_spending/3233/government_procurement_cards,04-Jun-2018,Housing & Communities,"Amazon Svcs Europe,SAR",Neighbourhoods,45.9,ICT,1819Q01_PC00528
Sandwell Metropolitan Borough Council,http://www.sandwell.gov.uk/info/200202/performance_and_spending/3233/government_procurement_cards,04-Jun-2018,Resources (Inc SIU),Amazon UK Marketplace,Assistant Chief Executive (Excl SIU),94.61,Equipment & Furniture,1819Q01_PC00529
Sandwell Metropolitan Borough Council,http://www.sandwell.gov.uk/info/200202/performance_and_spending/3233/government_procurement_cards,05-Jun-2018,Housing & Communities,AMAZON SVCS EU-UK AMAZ,Neighbourhoods,16.22,Fixtures & Fittings,1819Q01_PC00530
Sandwell Metropolitan Borough Council,http://www.sandwell.gov.uk/info/200202/performance_and_spending/3233/government_procurement_cards,05-Jun-2018,Childrens Services,Virgin Trains,Childrens Services,53.1,Public Transport,1819Q01_PC00531
Sandwell Metropolitan Borough Council,http://www.sandwell.gov.uk/info/200202/performance_and_spending/3233/government_procurement_cards,06-Jun-2018,Childrens Services,ASDA GROCERIES ONLINE,Childrens Services,0.13,Catering Provisions,1819Q01_PC00532
Sandwell Metropolitan Borough Council,http://www.sandwell.gov.uk/info/200202/performance_and_spending/3233/government_procurement_cards,06-Jun-2018,Childrens Services,ASDA GROCERIES ONLINE,Childrens Services,87.15,Catering Provisions,1819Q01_PC00533
Sandwell Metropolitan Borough Council,http://www.sandwell.gov.uk/info/200202/performance_and_spending/3233/government_procurement_cards,06-Jun-2018,Housing & Communities,GLASS'S INFORMATION SE,Neighbourhoods,1260,Subscriptions,1819Q01_PC00534
Sandwell Metropolitan Borough Council,http://www.sandwell.gov.uk/info/200202/performance_and_spending/3233/government_procurement_cards,06-Jun-2018,Total Housing Revenue Account,TIPTON LOW FUEL PRICES,Total Housing Revenue Account,74.7,Fuel,1819Q01_PC00535
Sandwell Metropolitan Borough Council,http://www.sandwell.gov.uk/info/200202/performance_and_spending/3233/government_procurement_cards,06-Jun-2018,Housing & Communities,AQUAID FRANCHISING LTD,Neighbourhoods,75,Catering Provisions,1819Q01_PC00536
Sandwell Metropolitan Borough Council,http://www.sandwell.gov.uk/info/200202/performance_and_spending/3233/government_procurement_cards,06-Jun-2018,Housing & Communities,HIGHFIELD HOUSE HO,Neighbourhoods,682.5,Rents,1819Q01_PC00537
Sandwell Metropolitan Borough Council,http://www.sandwell.gov.uk/info/200202/performance_and_spending/3233/government_procurement_cards,06-Jun-2018,Total Housing Revenue Account,AMAZON SVCS EU-UK AMAZ,Total Housing Revenue Account,-39.44,Materials & Consumables,1819Q01_PC00538
Sandwell Metropolitan Borough Council,http://www.sandwell.gov.uk/info/200202/performance_and_spending/3233/government_procurement_cards,06-Jun-2018,Housing & Communities,GLOBAL FOODS (BHAM) LT,Neighbourhoods,2.99,Catering Provisions,1819Q01_PC00539
Sandwell Metropolitan Borough Council,http://www.sandwell.gov.uk/info/200202/performance_and_spending/3233/government_procurement_cards,06-Jun-2018,Resources (Inc SIU),WEST MIDLAND METRO,Assistant Chief Executive (Excl SIU),6.7,Public Transport,1819Q01_PC00540
Sandwell Metropolitan Borough Council,http://www.sandwell.gov.uk/info/200202/performance_and_spending/3233/government_procurement_cards,06-Jun-2018,Resources (Inc SIU),HMCOURTS-SERVICE.G,Assistant Chief Executive (Excl SIU),2673,Council Tax,1819Q01_PC00541
Sandwell Metropolitan Borough Council,http://www.sandwell.gov.uk/info/200202/performance_and_spending/3233/government_procurement_cards,06-Jun-2018,Resources (Inc SIU),HMCOURTS-SERVICE.G,Assistant Chief Executive (Excl SIU),6000,Council Tax,1819Q01_PC00542
Sandwell Metropolitan Borough Council,http://www.sandwell.gov.uk/info/200202/performance_and_spending/3233/government_procurement_cards,06-Jun-2018,Housing & Communities,Amazon UK Marketplace,Neighbourhoods,6.99,Materials & Consumables,1819Q01_PC00543
Sandwell Metropolitan Borough Council,http://www.sandwell.gov.uk/info/200202/performance_and_spending/3233/government_procurement_cards,06-Jun-2018,Adult Social Care Health and Wellbeing - Total,BILL@TRAVEL.CLOUD,Total Adult Social Care,10.8,Public Transport,1819Q01_PC00544
Sandwell Metropolitan Borough Council,http://www.sandwell.gov.uk/info/200202/performance_and_spending/3233/government_procurement_cards,06-Jun-2018,Adult Social Care Health and Wellbeing - Total,BILL@TRAVEL.CLOUD,Total Adult Social Care,402,Public Transport,1819Q01_PC00545
Sandwell Metropolitan Borough Council,http://www.sandwell.gov.uk/info/200202/performance_and_spending/3233/government_procurement_cards,06-Jun-2018,Housing & Communities,DVSA MOT COMP 2,Neighbourhoods,205,Licences&Test Fees,1819Q01_PC00546
Sandwell Metropolitan Borough Council,http://www.sandwell.gov.uk/info/200202/performance_and_spending/3233/government_procurement_cards,06-Jun-2018,Adult Social Care Health and Wellbeing - Total,BILL@TRAVEL.CLOUD,Total Adult Social Care,12.7,Public Transport,1819Q01_PC00547
Sandwell Metropolitan Borough Council,http://www.sandwell.gov.uk/info/200202/performance_and_spending/3233/government_procurement_cards,06-Jun-2018,Adult Social Care Health and Wellbeing - Total,BILL@TRAVEL.CLOUD,Total Adult Social Care,176,Public Transport,1819Q01_PC00548
Sandwell Metropolitan Borough Council,http://www.sandwell.gov.uk/info/200202/performance_and_spending/3233/government_procurement_cards,07-Jun-2018,Total Housing Revenue Account,SCREWFIX DIRECT LT,Total Housing Revenue Account,17.07,Protective Clothing&Uniforms,1819Q01_PC00549
Sandwell Metropolitan Borough Council,http://www.sandwell.gov.uk/info/200202/performance_and_spending/3233/government_procurement_cards,07-Jun-2018,Childrens Services,EWETSUITS.COM,Childrens Services,139.17,Materials & Consumables,1819Q01_PC00550
Sandwell Metropolitan Borough Council,http://www.sandwell.gov.uk/info/200202/performance_and_spending/3233/government_procurement_cards,07-Jun-2018,Regeneration & Growth,PLUGTEST,Regeneration And The Economy,208.33,Ind. Emp Exp-Staff Dev&Training,1819Q01_PC00551
Sandwell Metropolitan Borough Council,http://www.sandwell.gov.uk/info/200202/performance_and_spending/3233/government_procurement_cards,07-Jun-2018,Regeneration & Growth,PLUGTEST,Regeneration And The Economy,41.67,Ind. Emp Exp-Staff Dev&Training,1819Q01_PC00552
Sandwell Metropolitan Borough Council,http://www.sandwell.gov.uk/info/200202/performance_and_spending/3233/government_procurement_cards,07-Jun-2018,Total Housing Revenue Account,HOUSING 2018,Total Housing Revenue Account,990,Conference Expenses,1819Q01_PC00553
Sandwell Metropolitan Borough Council,http://www.sandwell.gov.uk/info/200202/performance_and_spending/3233/government_procurement_cards,07-Jun-2018,Individual School Budgets With Inclusion,NORTON  NP1258616681,Individual School Budgets With Inclusion,20.82,ICT,1819Q01_PC00554
Sandwell Metropolitan Borough Council,http://www.sandwell.gov.uk/info/200202/performance_and_spending/3233/government_procurement_cards,07-Jun-2018,Housing & Communities,JOHN THE HANDYMAN,Neighbourhoods,29.17,R& M - Building Maint&Imp.,1819Q01_PC00555
Sandwell Metropolitan Borough Council,http://www.sandwell.gov.uk/info/200202/performance_and_spending/3233/government_procurement_cards,07-Jun-2018,Housing & Communities,SCREWFIX DIRECT,Neighbourhoods,49.99,Materials & Consumables,1819Q01_PC00556
Sandwell Metropolitan Borough Council,http://www.sandwell.gov.uk/info/200202/performance_and_spending/3233/government_procurement_cards,07-Jun-2018,Housing & Communities,Amazon UK Marketplace,Neighbourhoods,6.07,Materials & Consumables,1819Q01_PC00557
Sandwell Metropolitan Borough Council,http://www.sandwell.gov.uk/info/200202/performance_and_spending/3233/government_procurement_cards,07-Jun-2018,Housing & Communities,Amazon EU,Neighbourhoods,26.71,Materials & Consumables,1819Q01_PC00558
Sandwell Metropolitan Borough Council,http://www.sandwell.gov.uk/info/200202/performance_and_spending/3233/government_procurement_cards,07-Jun-2018,Resources (Inc SIU),www.crbdirect.org.uk-0,Assistant Chief Executive (Excl SIU),70,Premises Insurance,1819Q01_PC00559
Sandwell Metropolitan Borough Council,http://www.sandwell.gov.uk/info/200202/performance_and_spending/3233/government_procurement_cards,07-Jun-2018,Resources (Inc SIU),Virgin Trains,Assistant Chief Executive (Excl SIU),456.3,Public Transport,1819Q01_PC00560
Sandwell Metropolitan Borough Council,http://www.sandwell.gov.uk/info/200202/performance_and_spending/3233/government_procurement_cards,07-Jun-2018,Resources (Inc SIU),DISCLOSURE AND BARRING,Assistant Chief Executive (Excl SIU),25,Premises Insurance,1819Q01_PC00561
Sandwell Metropolitan Borough Council,http://www.sandwell.gov.uk/info/200202/performance_and_spending/3233/government_procurement_cards,07-Jun-2018,Adult Social Care Health and Wellbeing - Total,BILL@TRAVEL.CLOUD,Total Adult Social Care,25.4,Public Transport,1819Q01_PC00562
Sandwell Metropolitan Borough Council,http://www.sandwell.gov.uk/info/200202/performance_and_spending/3233/government_procurement_cards,07-Jun-2018,Housing & Communities,Amazon EU,Neighbourhoods,13.36,Materials & Consumables,1819Q01_PC00563
Sandwell Metropolitan Borough Council,http://www.sandwell.gov.uk/info/200202/performance_and_spending/3233/government_procurement_cards,07-Jun-2018,Childrens Services,Amazon EU,Childrens Services,11.78,Grounds Maint&Improvements,1819Q01_PC00564
Sandwell Metropolitan Borough Council,http://www.sandwell.gov.uk/info/200202/performance_and_spending/3233/government_procurement_cards,08-Jun-2018,Childrens Services,PEIRIANWAITH EIFIONYDD,Childrens Services,15.83,Grounds Maint&Improvements,1819Q01_PC00565
Sandwell Metropolitan Borough Council,http://www.sandwell.gov.uk/info/200202/performance_and_spending/3233/government_procurement_cards,08-Jun-2018,Total Housing Revenue Account,L.I.E.C EXCEL CAR PARK,Total Housing Revenue Account,16.67,Car Parking,1819Q01_PC00566
Sandwell Metropolitan Borough Council,http://www.sandwell.gov.uk/info/200202/performance_and_spending/3233/government_procurement_cards,08-Jun-2018,Childrens Services,WWW.OYPLA.COM,Childrens Services,35.82,Learning Resources,1819Q01_PC00567
Sandwell Metropolitan Borough Council,http://www.sandwell.gov.uk/info/200202/performance_and_spending/3233/government_procurement_cards,08-Jun-2018,Total Housing Revenue Account,FOXALL INDUSTRIAL SUPP,Total Housing Revenue Account,33.71,Materials & Consumables,1819Q01_PC00568
Sandwell Metropolitan Borough Council,http://www.sandwell.gov.uk/info/200202/performance_and_spending/3233/government_procurement_cards,08-Jun-2018,Total Housing Revenue Account,THE POST OFFICE,Total Housing Revenue Account,183.33,Licences,1819Q01_PC00569
Sandwell Metropolitan Borough Council,http://www.sandwell.gov.uk/info/200202/performance_and_spending/3233/government_procurement_cards,08-Jun-2018,Total Housing Revenue Account,Amazon UK Marketplace,Total Housing Revenue Account,18.33,Materials & Consumables,1819Q01_PC00570
Sandwell Metropolitan Borough Council,http://www.sandwell.gov.uk/info/200202/performance_and_spending/3233/government_procurement_cards,08-Jun-2018,Adult Social Care Health and Wellbeing - Total,Amazon UK Marketplace,Total Adult Social Care,40.06,ICT,1819Q01_PC00571
Sandwell Metropolitan Borough Council,http://www.sandwell.gov.uk/info/200202/performance_and_spending/3233/government_procurement_cards,11-Jun-2018,Childrens Services,SPORTSDIRECT.COM,Childrens Services,45.66,Materials & Consumables,1819Q01_PC00572
Sandwell Metropolitan Borough Council,http://www.sandwell.gov.uk/info/200202/performance_and_spending/3233/government_procurement_cards,11-Jun-2018,Resources (Inc SIU),THEEVENTSCALPLUGINS,Assistant Chief Executive (Excl SIU),221.67,ICT,1819Q01_PC00573
Sandwell Metropolitan Borough Council,http://www.sandwell.gov.uk/info/200202/performance_and_spending/3233/government_procurement_cards,11-Jun-2018,Resources (Inc SIU),PREMIER INN,Assistant Chief Executive (Excl SIU),46.5,Conference Expenses,1819Q01_PC00574
Sandwell Metropolitan Borough Council,http://www.sandwell.gov.uk/info/200202/performance_and_spending/3233/government_procurement_cards,11-Jun-2018,Childrens Services,WESTMINSTER FORUM,Childrens Services,115,Conference Expenses,1819Q01_PC00575
Sandwell Metropolitan Borough Council,http://www.sandwell.gov.uk/info/200202/performance_and_spending/3233/government_procurement_cards,11-Jun-2018,Childrens Services,WESTMINSTER FORUM,Childrens Services,115,Conference Expenses,1819Q01_PC00576
Sandwell Metropolitan Borough Council,http://www.sandwell.gov.uk/info/200202/performance_and_spending/3233/government_procurement_cards,11-Jun-2018,Childrens Services,Hotel on Booking.com,Childrens Services,57.5,Ind. Emp Exp-Staff Dev&Training,1819Q01_PC00577
Sandwell Metropolitan Borough Council,http://www.sandwell.gov.uk/info/200202/performance_and_spending/3233/government_procurement_cards,11-Jun-2018,Regeneration & Growth,DESIGN AND REPROGRAPHI,Regeneration And The Economy,94.5,Printing Stationery&Gen Office,1819Q01_PC00578
Sandwell Metropolitan Borough Council,http://www.sandwell.gov.uk/info/200202/performance_and_spending/3233/government_procurement_cards,11-Jun-2018,Individual School Budgets With Inclusion,TESCO PFS 5270,Individual School Budgets With Inclusion,5.17,Catering Provisions,1819Q01_PC00579
Sandwell Metropolitan Borough Council,http://www.sandwell.gov.uk/info/200202/performance_and_spending/3233/government_procurement_cards,11-Jun-2018,Childrens Services,ASDA STORES 4253,Childrens Services,5.83,Materials & Consumables,1819Q01_PC00580
Sandwell Metropolitan Borough Council,http://www.sandwell.gov.uk/info/200202/performance_and_spending/3233/government_procurement_cards,11-Jun-2018,Childrens Services,Virgin Trains,Childrens Services,142.35,Public Transport,1819Q01_PC00581
Sandwell Metropolitan Borough Council,http://www.sandwell.gov.uk/info/200202/performance_and_spending/3233/government_procurement_cards,11-Jun-2018,Resources (Inc SIU),Amazon UK Marketplace,Assistant Chief Executive (Excl SIU),16.48,Materials & Consumables,1819Q01_PC00582
Sandwell Metropolitan Borough Council,http://www.sandwell.gov.uk/info/200202/performance_and_spending/3233/government_procurement_cards,11-Jun-2018,Resources (Inc SIU),Virgin Trains,Assistant Chief Executive (Excl SIU),156,Public Transport,1819Q01_PC00583
Sandwell Metropolitan Borough Council,http://www.sandwell.gov.uk/info/200202/performance_and_spending/3233/government_procurement_cards,11-Jun-2018,Resources (Inc SIU),PREMIER INN,Assistant Chief Executive (Excl SIU),610.5,Conference Expenses,1819Q01_PC00584
Sandwell Metropolitan Borough Council,http://www.sandwell.gov.uk/info/200202/performance_and_spending/3233/government_procurement_cards,11-Jun-2018,Individual School Budgets With Inclusion,TESCO PFS 5270,Individual School Budgets With Inclusion,9.29,Catering Provisions,1819Q01_PC00585
Sandwell Metropolitan Borough Council,http://www.sandwell.gov.uk/info/200202/performance_and_spending/3233/government_procurement_cards,11-Jun-2018,Housing & Communities,GLOBAL FOODS (BHAM) LT,Neighbourhoods,13.41,Catering Provisions,1819Q01_PC00586
Sandwell Metropolitan Borough Council,http://www.sandwell.gov.uk/info/200202/performance_and_spending/3233/government_procurement_cards,11-Jun-2018,Adult Social Care Health and Wellbeing - Total,RS COMPONENTS,Total Adult Social Care,22.81,ICT,1819Q01_PC00587
Sandwell Metropolitan Borough Council,http://www.sandwell.gov.uk/info/200202/performance_and_spending/3233/government_procurement_cards,11-Jun-2018,Childrens Services,Trainline,Childrens Services,23.96,Public Transport,1819Q01_PC00588
Sandwell Metropolitan Borough Council,http://www.sandwell.gov.uk/info/200202/performance_and_spending/3233/government_procurement_cards,11-Jun-2018,Housing & Communities,POUNDLAND,Neighbourhoods,4.21,Materials & Consumables,1819Q01_PC00589
Sandwell Metropolitan Borough Council,http://www.sandwell.gov.uk/info/200202/performance_and_spending/3233/government_procurement_cards,11-Jun-2018,Resources (Inc SIU),Virgin Trains,Assistant Chief Executive (Excl SIU),-17.8,Public Transport,1819Q01_PC00590
Sandwell Metropolitan Borough Council,http://www.sandwell.gov.uk/info/200202/performance_and_spending/3233/government_procurement_cards,11-Jun-2018,Childrens Services,ASDA GROCERIES ONLINE,Childrens Services,-0.22,Catering Provisions,1819Q01_PC00591
Sandwell Metropolitan Borough Council,http://www.sandwell.gov.uk/info/200202/performance_and_spending/3233/government_procurement_cards,11-Jun-2018,Childrens Services,ASDA GROCERIES ONLINE,Childrens Services,41.1,Catering Provisions,1819Q01_PC00592
Sandwell Metropolitan Borough Council,http://www.sandwell.gov.uk/info/200202/performance_and_spending/3233/government_procurement_cards,11-Jun-2018,Resources (Inc SIU),Amazon EU,Assistant Chief Executive (Excl SIU),28.75,Printing Stationery&Gen Office,1819Q01_PC00593
Sandwell Metropolitan Borough Council,http://www.sandwell.gov.uk/info/200202/performance_and_spending/3233/government_procurement_cards,12-Jun-2018,Childrens Services,,Childrens Services,-70,Ind. Emp Exp-Staff Dev&Training,1819Q01_PC00594
Sandwell Metropolitan Borough Council,http://www.sandwell.gov.uk/info/200202/performance_and_spending/3233/government_procurement_cards,12-Jun-2018,Childrens Services,PEIRIANWAITH EIFIONYDD,Childrens Services,15.83,Grounds Maint&Improvements,1819Q01_PC00595
Sandwell Metropolitan Borough Council,http://www.sandwell.gov.uk/info/200202/performance_and_spending/3233/government_procurement_cards,12-Jun-2018,Childrens Services,TRAVELODGE,Childrens Services,78.5,Ind. Emp Exp-Staff Dev&Training,1819Q01_PC00596
Sandwell Metropolitan Borough Council,http://www.sandwell.gov.uk/info/200202/performance_and_spending/3233/government_procurement_cards,12-Jun-2018,Corporate Management,POUNDLAND LTD 1729,Corporate Management,8.33,Civic Events,1819Q01_PC00597
Sandwell Metropolitan Borough Council,http://www.sandwell.gov.uk/info/200202/performance_and_spending/3233/government_procurement_cards,12-Jun-2018,Childrens Services,GREETINGS HOUSE LTD,Childrens Services,47.12,Printing Stationery&Gen Office,1819Q01_PC00598
Sandwell Metropolitan Borough Council,http://www.sandwell.gov.uk/info/200202/performance_and_spending/3233/government_procurement_cards,12-Jun-2018,Resources (Inc SIU),SAVERS HEALTH & BEAUTY,Assistant Chief Executive (Excl SIU),1.66,Materials & Consumables,1819Q01_PC00599
Sandwell Metropolitan Borough Council,http://www.sandwell.gov.uk/info/200202/performance_and_spending/3233/government_procurement_cards,12-Jun-2018,Childrens Services,ASDA STORES 4253,Childrens Services,3.33,Materials & Consumables,1819Q01_PC00600
Sandwell Metropolitan Borough Council,http://www.sandwell.gov.uk/info/200202/performance_and_spending/3233/government_procurement_cards,12-Jun-2018,Total Housing Revenue Account,SAINSBURYS TO YOU 0558,Total Housing Revenue Account,-4.5,Materials & Consumables,1819Q01_PC00601
Sandwell Metropolitan Borough Council,http://www.sandwell.gov.uk/info/200202/performance_and_spending/3233/government_procurement_cards,12-Jun-2018,Total Housing Revenue Account,SAINSBURYS TO YOU 0558,Total Housing Revenue Account,4.5,Materials & Consumables,1819Q01_PC00602
Sandwell Metropolitan Borough Council,http://www.sandwell.gov.uk/info/200202/performance_and_spending/3233/government_procurement_cards,12-Jun-2018,Individual School Budgets With Inclusion,CURRYS,Individual School Budgets With Inclusion,124.98,Equipment & Furniture,1819Q01_PC00603
Sandwell Metropolitan Borough Council,http://www.sandwell.gov.uk/info/200202/performance_and_spending/3233/government_procurement_cards,12-Jun-2018,Individual School Budgets With Inclusion,TESCO STORES 6197,Individual School Budgets With Inclusion,17.96,Catering Provisions,1819Q01_PC00604
Sandwell Metropolitan Borough Council,http://www.sandwell.gov.uk/info/200202/performance_and_spending/3233/government_procurement_cards,12-Jun-2018,Housing & Communities,Amazon UK Marketplace,Neighbourhoods,11.05,Materials & Consumables,1819Q01_PC00605
Sandwell Metropolitan Borough Council,http://www.sandwell.gov.uk/info/200202/performance_and_spending/3233/government_procurement_cards,12-Jun-2018,Resources (Inc SIU),PAYPAL  LAG,Assistant Chief Executive (Excl SIU),205,Printing Stationery&Gen Office,1819Q01_PC00606
Sandwell Metropolitan Borough Council,http://www.sandwell.gov.uk/info/200202/performance_and_spending/3233/government_procurement_cards,12-Jun-2018,Regeneration & Growth,Virgin Trains,Regeneration And The Economy,61.5,Public Transport,1819Q01_PC00607
Sandwell Metropolitan Borough Council,http://www.sandwell.gov.uk/info/200202/performance_and_spending/3233/government_procurement_cards,12-Jun-2018,Childrens Services,Amazon UK Marketplace,Childrens Services,26.85,Materials & Consumables,1819Q01_PC00608
Sandwell Metropolitan Borough Council,http://www.sandwell.gov.uk/info/200202/performance_and_spending/3233/government_procurement_cards,12-Jun-2018,Childrens Services,Amazon UK Marketplace,Childrens Services,89.5,Materials & Consumables,1819Q01_PC00609
Sandwell Metropolitan Borough Council,http://www.sandwell.gov.uk/info/200202/performance_and_spending/3233/government_procurement_cards,12-Jun-2018,Resources (Inc SIU),Virgin Trains,Assistant Chief Executive (Excl SIU),249.9,Public Transport,1819Q01_PC00610
